Workbook

Sheet FY22 BID Awards
A1: CITY OF GRIFFIN
A2: RECOMMENDED AWARDS FOR FY22-FY23 WATER TREATMENT CHEMICALS
A3: ITB - 21-009
A5: CHEMICALS: Description | B5: Amount | C5: UOM | D5: Unit $ | E5: PO Total | F5: PO | G5: Company | H5: FY22
A6: Caustic Soda (25%) -Totes | B6: 106,000 | C6: wet lbs | D6: ='[1]Chemical Worksheet'!D4 -> 0.12 | E6: =B6*D6 -> $12,720.00 | G6: ='[1]Chemical Worksheet'!D2 -> Brenntag
A7: Caustic Soda (25%) -Bulk | B7: 775,000 | C7: wet lbs | D7: ='[1]Chemical Worksheet'!P5 -> 0.0686 | E7: =B7*D7 -> $53,165.00 | G7: ='[1]Chemical Worksheet'!P2 -> Univar
A8: Chemical Hydrated Lime 400 | B8: 155,000 | C8: dry lbs | D8: ='[1]Chemical Worksheet'!D6 -> 0.233 | E8: $36,115.00 | G8: ='[1]Chemical Worksheet'!D2 -> Brenntag
A9: Hyper-Ion 9810 -Totes (NO SUBS) | B9: 120,000 | C9: wet lbs | D9: 0.45 | E9: $54,000.00 | G9: Industrial | H9: Sole Source
A10: Hyper-Ion 9810-Bulk (NO SUBS) | B10: 130,000 | C10: wet lbs | D10: 0.27 | E10: $35,100.00 | G10: Industrial | H10: Sole Source
A11: IC-348 Polymer (NO SUBS) | B11: 6,000 | C11: wet lbs | D11: 0.95 | E11: $5,700.00 | G11: Industrial | H11: RENEWAL
A12: IC-7268SP6 (NO SUBS) | B12: 19,000 | C12: wet lbs | D12: 1.40 | E12: $26,600.00 | G12: Industrial | H12: RENEWAL
A13: IC-7284 (NO SUBS) | B13: 2,000 | C13: wet lbs | D13: 1.40 | E13: $2,800.00 | G13: Industrial | H13: RENEWAL
A14: Liquid Chlorine (150-lb cyl) | B14: 8 | C14: cyl | D14: ='[1]Chemical Worksheet'!D7 -> 84.30 | E14: $674.40 | G14: ='[1]Chemical Worksheet'!D2 -> Brenntag
A15: Liquid Chlorine (1 Ton cyl) | B15: 28 | C15: cyl | D15: ='[1]Chemical Worksheet'!D8 -> 684.00 | E15: $19,152.00 | G15: ='[1]Chemical Worksheet'!D2 -> Brenntag
A16: Liquid Lime (Burnett Lime Company *No Substitutions) | B16: 300,000 | C16: wet lbs | D16: 0.057 | E16: $17,100.00 | G16: Burnett Lime | H16: RENEWAL
A17: Liquid Phosphate -Aquadene SK7870 | B17: 65,000 | C17: wet lbs | D17: ='[1]Chemical Worksheet'!F9 -> 0.495 | E17: $32,175.00 | G17: ='[1]Chemical Worksheet'!F2 -> Carus Corp
A18: Magnifloc LT7989 Flocculent | B18: 20,000 | C18: wet lbs | D18: ='[1]Chemical Worksheet'!O10 -> 1.045 | E18: $20,900.00 | G18: ='[1]Chemical Worksheet'!O2 -> Sterling Water
A19: Aluminum Sulfate Solution | B19: 560,000 | C19: wet lbs | D19: ='[1]Chemical Worksheet'!H11 -> 0.0658 | E19: $36,848.00 | G19: ='[1]Chemical Worksheet'!H2 -> Chemtrade
A20: Nuchar Carbon | B20: 11,100 | C20: dry lbs | D20: ='[1]Chemical Worksheet'!G12 -> 0.91 | E20: $10,101.00 | G20: ='[1]Chemical Worksheet'!G2 -> Chemrite
A21: Poly Aluminum Chloride- CedarCLEAR 757 (NO SUBS) | B21: 956,250 | C21: wet lbs | D21: 0.225 | E21: $215,156.25 | G21: CedarCHEM | H21: RENEWAL
A22: Polymer-CedarFLOC 510 (NO SUBS) | B22: 1,250 | C22: dry lbs | D22: 2.75 | E22: $3,437.50 | G22: CedarCHEM | H22: RENEWAL
A23: Potassium Permanganate | B23: 6,000 | C23: dry lbs | D23: ='[1]Chemical Worksheet'!G13 -> 1.617 | E23: $9,702.00 | G23: ='[1]Chemical Worksheet'!G2 -> Chemrite
A24: Soda Ash (50 lb bags) | B24: 30,000 | C24: dry lbs | D24: ='[1]Chemical Worksheet'!I14 -> 0.275 | E24: $8,250.00 | G24: ='[1]Chemical Worksheet'!I2 -> Colonial
A25: Sodium Chlorite (25%) - Bulk | B25: 100,000 | C25: wet lbs | D25: 0.539 | E25: $53,900.00 | G25: ERCOPure | H25: RENEWAL
A26: Sodium Fluorosilicate | B26: 42,500 | C26: dry lbs | D26: 0.75 | E26: $31,875.00 | G26: Industrial | H26: Sole Source
A27: Sodium Hypochlorite (10-15% solution) | B27: 75,000 | C27: gal | D27: ='[1]Chemical Worksheet'!J16 -> 0.808 | E27: $60,600.00 | G27: ='[1]Chemical Worksheet'!J2 -> DPC Enterprises
A28: Sodium Permanganate 20% | B28: 3,250 | C28: gal | D28: ='[1]Chemical Worksheet'!G17 -> 9.099 | E28: $29,571.75 | G28: ='[1]Chemical Worksheet'!G2 -> Chemrite
G30: TOTAL | H30: =SUM(E6:E28) -> $775,642.90

Sheet 001-Alum Sulfate blnkt
J2: City of Griffin, Georgia
J3: 100 S Hill Street
J4: P O Box T | Z4: DATE: | AA4: 2021-07-01
J5: Griffin, Georgia 30224
K6: (770) 229-6400 | Z6: Purchase Order No.
Z7: suffix.
Z8: Bid/Quote No. | AA8: 21-009
Z9: Vendor No.
A10: Vendor Name & Address
A11: Chemtrade Chemicals | M11: Per Georgia State Code 48.8, the City of Griffin is tax exempt for sale and use
A12: 90 East Halsey Rd | N12: taxes. Georgia Sales & Use Tax Exemption No. 20006246313
A13: Parsippany, NJ 07054 | L13: Deliver to:
A14: cssorders@chemtradelogistics.com | N14: City of Griffin
A15: Ph: | B15: 800-631-8050 | G15: Fax: | N15: Dept: Harry Simmons Plant
A16: Freight is FOB Destination Deliveries are accepted between the hours of 8:00 a.m. and 4 p.m. | F16: Mail all invoices* to: City of Griffin Attn- Accounts Payable P O Box T Griffin, GA 30224 | N16: 229 N Expressway
N17: Griffin, GA 30223
L19: ATTN: | N19: Martha Drolet
A20: *Terms: Net 30 unless otherwise specified on PO | L20: Phone: | N20: 770-233-2974 | V20: Fax:
A21: - - ANY CHANGE ORDERS TO ANY PO OR WORK ORDERS MUST BE AUTHORIZED IN WRITING AND APPROVED. ALL INVOICES SUBMITTED FOR PAYMENT MUST REFERENCE A VALID PURCHASE ORDER NUMBER. - -
A22: - VENDORS MUST HAVE A CURRENT E-VERIFY AFFADAVIT ON FILE PRIOR TO PO PROCESSING - | Y22: On File? | AA22: Y/N | AB22: Y
A23: Description | K23: Account Number | T23: Quantity | V23: UOM | X23: Unit Price | Z23: Extended Totals
Z24: =SUM(X24*T24) -> 0.00
A25: Water Treatment Chemicals for FY 2022 | K25: 505 | L25: - | M25: 4431 | N25: - | O25: 53 | P25: - | Q25: 1120 | R25: - | S25: 0000 | T25: 560,000 | V25: lbs | X25: 0.066 | Z25: 36,848.00
A26: (July 2021 - June 2022) | L26: - | N26: - | P26: - | R26: - | Z26: 0.00
A27: CHEMICALS: BLANKET PO | L27: - | N27: - | P27: - | R27: - | Z27: =SUM(X27*T27) -> 0.00
L28: - | N28: - | P28: - | R28: - | Z28: =SUM(X28*T28) -> 0.00
A29: Aluminum Sulfate, Liquid | L29: - | N29: - | P29: - | R29: - | Z29: =SUM(X29*T29) -> 0.00
A30: delivered bulk | L30: - | N30: - | P30: - | R30: - | Z30: =SUM(X30*T30) -> 0.00
L31: - | N31: - | P31: - | R31: - | Z31: =SUM(X31*T31) -> 0.00
L32: - | N32: - | P32: - | R32: - | Z32: 0.00
L33: - | N33: - | P33: - | R33: - | Z33: 0.00
L34: - | N34: - | P34: - | R34: - | Z34: 0.00
L35: - | N35: - | P35: - | R35: - | Z35: 0.00
A36: CAPITAL PROJECT #: | L36: - | N36: - | P36: - | R36: -
A37: DISTRIBUTION & $$ | L37: - | N37: - | P37: - | R37: -
A38: COMMENTS: | V38: Totals: $ | Y38: =SUM(Z19:AB37) -> 36,848.00
A39: Martha Drolet - 770-233-2974 x647
A41: COG USE ONLY | M41: COG USE ONLY
A42: Pricing method: | F42: Water/Wastewater FY22
C43: Verbal / Phone
C44: Email/Mail/Fax | G44: Dept / Requestor / Date | T44: Purchasing / Date
A45: =AA8 -> 21-009 | C45: Bid / RFP #
C46: E-Verify Affidavit
A47: Vendor emailed copy? | G47: Department Mgr / Date | T47: Finance Director / Date
C48: Vendor Notified
A49: Invoice apprvd/attchd?
C50: PMT Approval | G50: City Manager / Date | T50: BOARD / Date
C51: Inv Attached

Sheet 002-25%Caustic Soda-Bulk blnkt
J2: City of Griffin, Georgia
J3: 100 S Hill Street
J4: P O Box T | Z4: DATE: | AA4: 2021-07-01
J5: Griffin, Georgia 30224
K6: (770) 229-6400 | Z6: Purchase Order No.
Z7: suffix.
Z8: Bid/Quote No. | AA8: 21-009
Z9: Vendor No.
A10: Vendor Name & Address
A11: Univar USA, Inc. | M11: Per Georgia State Code 48.8, the City of Griffin is tax exempt for sale and use
A12: 8201 S 212th St | N12: taxes. Georgia Sales & Use Tax Exemption No. 20006246313
A13: Kent, WA 98032 | L13: Deliver to:
N14: City of Griffin
A15: Ph: | B15: 800-531-7106 | G15: Fax: | N15: Dept: appropriate water or wastewater plant
A16: Freight is FOB Destination Deliveries are accepted between the hours of 8:00 a.m. and 4 p.m. | F16: Mail all invoices* to: City of Griffin Attn- (plant receiving shipmt) P O Box T Griffin, GA 30224 | N16: confirm location at time of order
N17: Griffin, GA 30223
L19: ATTN: | N19: Ibn Shakir
A20: *Terms: Net 30 unless otherwise specified on PO | L20: Phone: | V20: Fax:
A21: - - ANY CHANGE ORDERS TO ANY PO OR WORK ORDERS MUST BE AUTHORIZED IN WRITING AND APPROVED. ALL INVOICES SUBMITTED FOR PAYMENT MUST REFERENCE A VALID PURCHASE ORDER NUMBER. - -
A22: - VENDORS MUST HAVE A CURRENT E-VERIFY AFFADAVIT ON FILE PRIOR TO PO PROCESSING - | Y22: On File? | AA22: Y/N | AB22: Y
A23: Description | K23: Account Number | T23: Quantity | V23: UOM | X23: Unit Price | Z23: Extended Totals
L24: - | N24: - | P24: - | R24: - | Z24: =SUM(X24*T24) -> 0.00
A25: Water Treatment Chemicals for FY 2022 | L25: - | N25: - | P25: - | R25: - | Z25: 0.00
A26: (July 2021 - June 2022) | K26: 505 | L26: - | M26: 4333 | N26: - | O26: 53 | P26: - | Q26: 1120 | R26: - | S26: 0000 | T26: 775000 | V26: lbs | X26: 0.069 | Z26: 53,165.00
A27: CHEMICALS: BLANKET PO | L27: - | N27: - | P27: - | R27: - | Z27: =SUM(X27*T27) -> 0.00
L28: - | N28: - | P28: - | R28: - | Z28: =SUM(X28*T28) -> 0.00
A29: Caustic Soda (25%)-Bulk | L29: - | N29: - | P29: - | R29: - | Z29: =SUM(X29*T29) -> 0.00
L30: - | N30: - | P30: - | R30: - | Z30: =SUM(X30*T30) -> 0.00
L31: - | N31: - | P31: - | R31: - | Z31: =SUM(X31*T31) -> 0.00
L32: - | N32: - | P32: - | R32: - | Z32: 0.00
L33: - | N33: - | P33: - | R33: - | Z33: 0.00
L34: - | N34: - | P34: - | R34: - | Z34: 0.00
L35: - | N35: - | P35: - | R35: - | Z35: 0.00
A36: CAPITAL PROJECT #: | L36: - | N36: - | P36: - | R36: -
A37: DISTRIBUTION & $$ | L37: - | N37: - | P37: - | R37: -
A38: COMMENTS: | V38: Totals: $ | Y38: =SUM(Z19:AB37) -> 53,165.00
A39: Ibn Shakir- 678-692-0408 x687
A41: COG USE ONLY | M41: COG USE ONLY
A42: Pricing method: | F42: Water/Wastewater FY21
C43: Verbal / Phone
C44: Email/Mail/Fax | G44: Dept / Requestor / Date | T44: Purchasing / Date
A45: =AA8 -> 21-009 | C45: Bid / RFP #
C46: E-Verify Affidavit
A47: Vendor emailed copy? | G47: Department Mgr / Date | T47: Finance Director / Date
C48: Vendor Notified
A49: Invoice apprvd/attchd?
C50: PMT Approval | G50: City Manager / Date | T50: BOARD / Date
C51: Inv Attached

Sheet 003-CedarClear -PAC blnkt
J2: City of Griffin, Georgia
J3: 100 S Hill Street
J4: P O Box T | Z4: DATE: | AA4: 2021-07-01
J5: Griffin, Georgia 30224
K6: (770) 229-6400 | Z6: Purchase Order No.
Z7: suffix.
Z8: Bid/Quote No. | AA8: 21-009
Z9: Vendor No.
A10: Vendor Name & Address
A11: CedarChem | M11: Per Georgia State Code 48.8, the City of Griffin is tax exempt for sale and use
A12: 105 Plantation Ave | N12: taxes. Georgia Sales & Use Tax Exemption No. 20006246313
A13: Cedartown, GA 30125 | L13: Deliver to:
A14: adrienne.hess@cedarchem.com; heather.weeks@cedarchem.com | N14: City of Griffin
A15: Ph: | B15: 770-748-3863 | G15: Fax: | N15: Dept: Still Branch
A16: Freight is FOB Destination Deliveries are accepted between the hours of 8:00 a.m. and 4 p.m. | F16: Mail all invoices* to: City of Griffin Attn- (plant receiving shipmt) P O Box T Griffin, GA 30224 | N16: 2045 Flat Shoals Rd
N17: Concord, GA 30206
L19: ATTN: | N19: Mike Melton
A20: *Terms: Net 30 unless otherwise specified on PO | L20: Phone: | N20: 678-692-0407 | V20: Fax:
A21: - - ANY CHANGE ORDERS TO ANY PO OR WORK ORDERS MUST BE AUTHORIZED IN WRITING AND APPROVED. ALL INVOICES SUBMITTED FOR PAYMENT MUST REFERENCE A VALID PURCHASE ORDER NUMBER. - -
A22: - VENDORS MUST HAVE A CURRENT E-VERIFY AFFADAVIT ON FILE PRIOR TO PO PROCESSING - | Y22: On File? | AA22: Y/N | AB22: Y
A23: Description | K23: Account Number | T23: Quantity | V23: UOM | X23: Unit Price | Z23: Extended Totals
L24: - | N24: - | P24: - | R24: - | Z24: =SUM(X24*T24) -> 0.00
A25: Water Treatment Chemicals for FY 2022 | K25: 505 | L25: - | M25: 4432 | N25: - | O25: 53 | P25: - | Q25: 1120 | R25: - | S25: 0000 | T25: 956,250 | V25: lbs | X25: 0.225 | Z25: 215,156.25
A26: (July 2021 - June 2022) | L26: - | N26: - | P26: - | R26: - | Z26: 0.00
A27: CHEMICALS: BLANKET PO | L27: - | N27: - | P27: - | R27: - | Z27: =SUM(X27*T27) -> 0.00
L28: - | N28: - | P28: - | R28: - | Z28: =SUM(X28*T28) -> 0.00
A29: Poly Aluminum Chloride | L29: - | N29: - | P29: - | R29: - | Z29: =SUM(X29*T29) -> 0.00
A30: CedarCLEAR 757 (no substitutions) | L30: - | N30: - | P30: - | R30: - | Z30: =SUM(X30*T30) -> 0.00
L31: - | N31: - | P31: - | R31: - | Z31: =SUM(X31*T31) -> 0.00
L32: - | N32: - | P32: - | R32: - | Z32: 0.00
L33: - | N33: - | P33: - | R33: - | Z33: 0.00
L34: - | N34: - | P34: - | R34: - | Z34: 0.00
L35: - | N35: - | P35: - | R35: - | Z35: 0.00
A36: CAPITAL PROJECT #: | L36: - | N36: - | P36: - | R36: -
A37: DISTRIBUTION & $$ | L37: - | N37: - | P37: - | R37: -
A38: COMMENTS: | V38: Totals: $ | Y38: =SUM(Z19:AB37) -> 215,156.25
A39: Mike Melton - 678-692-0407
A41: COG USE ONLY | M41: COG USE ONLY
A42: Pricing method: | F42: Water/Wastewater FY22
C43: Verbal / Phone
C44: Email/Mail/Fax | G44: Dept / Requestor / Date | T44: Purchasing / Date
A45: =AA8 -> 21-009 | C45: Bid / RFP #
C46: E-Verify Affidavit
A47: Vendor emailed copy? | G47: Department Mgr / Date | T47: Finance Director / Date
C48: Vendor Notified
A49: Invoice apprvd/attchd?
C50: PMT Approval | G50: City Manager / Date | T50: BOARD / Date
C51: Inv Attached

Sheet 004-CedarFloc Polymer blnkt
J2: City of Griffin, Georgia
J3: 100 S Hill Street
J4: P O Box T | Z4: DATE: | AA4: 2021-07-01
J5: Griffin, Georgia 30224
K6: (770) 229-6400 | Z6: Purchase Order No.
Z7: suffix.
Z8: Bid/Quote No. | AA8: 21-009
Z9: Vendor No.
A10: Vendor Name & Address
A11: CedarChem | M11: Per Georgia State Code 48.8, the City of Griffin is tax exempt for sale and use
A12: 105 Plantation Ave | N12: taxes. Georgia Sales & Use Tax Exemption No. 20006246313
A13: Cedartown, GA 30125 | L13: Deliver to:
A14: adrienne.hess@cedarchem.com; heather.weeks@cedarchem.com | N14: City of Griffin
A15: Ph: | B15: 770-748-3863 | G15: Fax: | N15: Dept: Still Branch
A16: Freight is FOB Destination Deliveries are accepted between the hours of 8:00 a.m. and 4 p.m. | F16: Mail all invoices* to: City of Griffin Attn- (plant receiving shipmt) P O Box T Griffin, GA 30224 | N16: 2045 Flat Shoals Rd
N17: Concord, GA 30206
L19: ATTN: | N19: Mike Melton
A20: *Terms: Net 30 unless otherwise specified on PO | L20: Phone: | N20: 678-692-0407 | V20: Fax:
A21: - - ANY CHANGE ORDERS TO ANY PO OR WORK ORDERS MUST BE AUTHORIZED IN WRITING AND APPROVED. ALL INVOICES SUBMITTED FOR PAYMENT MUST REFERENCE A VALID PURCHASE ORDER NUMBER. - -
A22: - VENDORS MUST HAVE A CURRENT E-VERIFY AFFADAVIT ON FILE PRIOR TO PO PROCESSING - | Y22: On File? | AA22: Y/N | AB22: Y
A23: Description | K23: Account Number | T23: Quantity | V23: UOM | X23: Unit Price | Z23: Extended Totals
L24: - | N24: - | P24: - | R24: - | Z24: =SUM(X24*T24) -> 0.00
A25: Water Treatment Chemicals for FY 2022 | K25: 505 | L25: - | M25: 4432 | N25: - | O25: 53 | P25: - | Q25: 1120 | R25: - | S25: 0000 | T25: 1,250 | V25: lbs | X25: 2.750 | Z25: 3,437.50
A26: (July 2021 - June 2022) | L26: - | N26: - | P26: - | R26: - | Z26: 0.00
A27: CHEMICALS: BLANKET PO | L27: - | N27: - | P27: - | R27: - | Z27: =SUM(X27*T27) -> 0.00
L28: - | N28: - | P28: - | R28: - | Z28: =SUM(X28*T28) -> 0.00
A29: CedarFLOC 510 Polymer | L29: - | N29: - | P29: - | R29: - | Z29: =SUM(X29*T29) -> 0.00
A30: (no substitutions) | L30: - | N30: - | P30: - | R30: - | Z30: =SUM(X30*T30) -> 0.00
L31: - | N31: - | P31: - | R31: - | Z31: =SUM(X31*T31) -> 0.00
L32: - | N32: - | P32: - | R32: - | Z32: 0.00
L33: - | N33: - | P33: - | R33: - | Z33: 0.00
L34: - | N34: - | P34: - | R34: - | Z34: 0.00
L35: - | N35: - | P35: - | R35: - | Z35: 0.00
A36: CAPITAL PROJECT #: | L36: - | N36: - | P36: - | R36: -
A37: DISTRIBUTION & $$ | L37: - | N37: - | P37: - | R37: -
A38: COMMENTS: | V38: Totals: $ | Y38: =SUM(Z19:AB37) -> 3,437.50
A39: Mike Melton - 678-692-0407
A41: COG USE ONLY | M41: COG USE ONLY
A42: Pricing method: | F42: Water/Wastewater FY22
C43: Verbal / Phone
C44: Email/Mail/Fax | G44: Dept / Requestor / Date | T44: Purchasing / Date
A45: =AA8 -> 21-009 | C45: Bid / RFP #
C46: E-Verify Affidavit
A47: Vendor emailed copy? | G47: Department Mgr / Date | T47: Finance Director / Date
C48: Vendor Notified
A49: Invoice apprvd/attchd?
C50: PMT Approval | G50: City Manager / Date | T50: BOARD / Date
C51: Inv Attached

Sheet 005-Hydrated Lime blnkt
J2: City of Griffin, Georgia
J3: 100 S Hill Street
J4: P O Box T | Z4: DATE: | AA4: 2021-07-01
J5: Griffin, Georgia 30224
K6: (770) 229-6400 | Z6: Purchase Order No.
Z7: suffix.
Z8: Bid/Quote No. | AA8: 21-009
Z9: Vendor No.
A10: Vendor Name & Address
A11: Brenntag Mid-South Inc. | M11: Per Georgia State Code 48.8, the City of Griffin is tax exempt for sale and use
A12: 3200 Moon Station Rd | N12: taxes. Georgia Sales & Use Tax Exemption No. 20006246313
A13: Kennesaw, GA 30144 | L13: Deliver to:
A14: baustin@brenntag.com | N14: City of Griffin
A15: Ph: | B15: 770-377-9518 | G15: Fax: | N15: Dept: Harry Simmons Plant
A16: Freight is FOB Destination Deliveries are accepted between the hours of 8:00 a.m. and 4 p.m. | F16: Mail all invoices* to: City of Griffin Attn- Accounts Payable P O Box T Griffin, GA 30224 | N16: 229 N Expressway
N17: Griffin, GA 30223
L19: ATTN: | N19: Martha Drolet
A20: *Terms: Net 30 unless otherwise specified on PO | L20: Phone: | N20: 770-233-2974 | V20: Fax:
A21: - - ANY CHANGE ORDERS TO ANY PO OR WORK ORDERS MUST BE AUTHORIZED IN WRITING AND APPROVED. ALL INVOICES SUBMITTED FOR PAYMENT MUST REFERENCE A VALID PURCHASE ORDER NUMBER. - -
A22: - VENDORS MUST HAVE A CURRENT E-VERIFY AFFADAVIT ON FILE PRIOR TO PO PROCESSING - | Y22: On File? | AA22: Y/N | AB22: Y
A23: Description | K23: Account Number | T23: Quantity | V23: UOM | X23: Unit Price | Z23: Extended Totals
L24: - | N24: - | P24: - | R24: - | Z24: =SUM(X24*T24) -> 0.00
A25: Water Treatment Chemicals for FY 2022 | K25: 505 | L25: - | M25: 4431 | N25: - | O25: 53 | P25: - | Q25: 1120 | R25: - | S25: 0000 | T25: 155,000 | V25: dry lbs | X25: 0.2330 | Z25: 36,115.00
A26: (July 2021 - June 2022) | L26: - | N26: - | P26: - | R26: - | Z26: 0.00
A27: CHEMICALS: BLANKET PO | L27: - | N27: - | P27: - | R27: - | Z27: =SUM(X27*T27) -> 0.00
L28: - | N28: - | P28: - | R28: - | Z28: =SUM(X28*T28) -> 0.00
A29: Chemical Hydrated Lime | L29: - | N29: - | P29: - | R29: - | Z29: =SUM(X29*T29) -> 0.00
A30: 50 lb bags | L30: - | N30: - | P30: - | R30: - | Z30: =SUM(X30*T30) -> 0.00
L31: - | N31: - | P31: - | R31: - | Z31: =SUM(X31*T31) -> 0.00
L32: - | N32: - | P32: - | R32: - | Z32: 0.00
L33: - | N33: - | P33: - | R33: - | Z33: 0.00
L34: - | N34: - | P34: - | R34: - | Z34: 0.00
L35: - | N35: - | P35: - | R35: - | Z35: 0.00
A36: CAPITAL PROJECT #: | L36: - | N36: - | P36: - | R36: -
A37: DISTRIBUTION & $$ | L37: - | N37: - | P37: - | R37: -
A38: COMMENTS: | V38: Totals: $ | Y38: =SUM(Z19:AB37) -> 36,115.00
A39: Martha Drolet - 770-233-2974 x647
A41: COG USE ONLY | M41: COG USE ONLY
A42: Pricing method: | F42: Water/Wastewater FY22
C43: Verbal / Phone
C44: Email/Mail/Fax | G44: Dept / Requestor / Date | T44: Purchasing / Date
A45: =AA8 -> 21-009 | C45: Bid / RFP #
C46: E-Verify Affidavit
A47: Vendor emailed copy? | G47: Department Mgr / Date | T47: Finance Director / Date
C48: Vendor Notified
A49: Invoice apprvd/attchd?
C50: PMT Approval | G50: City Manager / Date | T50: BOARD / Date
C51: Inv Attached

Sheet 006-Hyper-Ion 9810 blnkt
J2: City of Griffin, Georgia
J3: 100 S Hill Street
J4: P O Box T | Z4: DATE: | AA4: 2021-07-01
J5: Griffin, Georgia 30224
K6: (770) 229-6400 | Z6: Purchase Order No.
Z7: suffix.
Z8: Bid/Quote No. | AA8: 21-009
Z9: Vendor No.
A10: Vendor Name & Address
A11: Industrial Chemical, Inc. | M11: Per Georgia State Code 48.8, the City of Griffin is tax exempt for sale and use
A12: 2042 Montreat Drive | N12: taxes. Georgia Sales & Use Tax Exemption No. 20006246313
A13: Vestavia, AL 35216 | L13: Deliver to:
A14: orders@industrialchem.com; dianekalina@industrialchem.com | N14: City of Griffin
A15: Ph: | B15: 800-476-2042 | G15: Fax: | N15: Dept: Potato Creek
A16: Freight is FOB Destination Deliveries are accepted between the hours of 8:00 a.m. and 4 p.m. | F16: Mail all invoices* to: City of Griffin Attn- Accounts Payable P O Box T Griffin, GA 30224 | N16: 1150 County Line Rd
N17: Griffin, GA 30224
L19: ATTN: | N19: Robert Clark
A20: *Terms: Net 30 unless otherwise specified on PO | L20: Phone: | N20: 770-229-6609 | V20: Fax:
A21: - - ANY CHANGE ORDERS TO ANY PO OR WORK ORDERS MUST BE AUTHORIZED IN WRITING AND APPROVED. ALL INVOICES SUBMITTED FOR PAYMENT MUST REFERENCE A VALID PURCHASE ORDER NUMBER. - -
A22: - VENDORS MUST HAVE A CURRENT E-VERIFY AFFADAVIT ON FILE PRIOR TO PO PROCESSING - | Y22: On File? | AA22: Y/N | AB22: Y
A23: Description | K23: Account Number | T23: Quantity | V23: UOM | X23: Unit Price | Z23: Extended Totals
L24: - | N24: - | P24: - | R24: - | Z24: =SUM(X24*T24) -> 0.00
A25: Water Treatment Chemicals for FY 2022 | K25: 505 | L25: - | M25: 4332 | N25: - | O25: 53 | P25: - | Q25: 1120 | R25: - | S25: 0000 | T25: 120,000 | V25: lbs | X25: 0.4500 | Z25: 54,000.00
A26: (July 2021 - June 2022) | L26: - | N26: - | P26: - | R26: - | Z26: 0.00
A27: CHEMICALS: BLANKET PO | L27: - | N27: - | P27: - | R27: - | Z27: =SUM(X27*T27) -> 0.00
L28: - | N28: - | P28: - | R28: - | Z28: =SUM(X28*T28) -> 0.00
A29: Hyper-Ion 9810-Totes | L29: - | N29: - | P29: - | R29: - | Z29: =SUM(X29*T29) -> 0.00
A30: (no substitutions) | L30: - | N30: - | P30: - | R30: - | Z30: =SUM(X30*T30) -> 0.00
L31: - | N31: - | P31: - | R31: - | Z31: =SUM(X31*T31) -> 0.00
L32: - | N32: - | P32: - | R32: - | Z32: 0.00
L33: - | N33: - | P33: - | R33: - | Z33: 0.00
L34: - | N34: - | P34: - | R34: - | Z34: 0.00
L35: - | N35: - | P35: - | R35: - | Z35: 0.00
A36: CAPITAL PROJECT #: | L36: - | N36: - | P36: - | R36: -
A37: DISTRIBUTION & $$ | L37: - | N37: - | P37: - | R37: -
A38: COMMENTS: | V38: Totals: $ | Y38: =SUM(Z19:AB37) -> 54,000.00
A39: Robert Clark- 770-229-6609 x491
A40: Send invoices to agolden@cityofgriffin.com
A41: COG USE ONLY | M41: COG USE ONLY
A42: Pricing method: | F42: Water/Wastewater FY22
C43: Verbal / Phone
C44: Email/Mail/Fax | G44: Dept / Requestor / Date | T44: Purchasing / Date
A45: =AA8 -> 21-009 | C45: Bid / RFP #
C46: E-Verify Affidavit
A47: Vendor emailed copy? | G47: Department Mgr / Date | T47: Finance Director / Date
C48: Vendor Notified
A49: Invoice apprvd/attchd?
C50: PMT Approval | G50: City Manager / Date | T50: BOARD / Date
C51: Inv Attached

Sheet 007-IC 348 blnkt
J2: City of Griffin, Georgia
J3: 100 S Hill Street
J4: P O Box T | Z4: DATE: | AA4: 2021-07-01
J5: Griffin, Georgia 30224
K6: (770) 229-6400 | Z6: Purchase Order No.
Z7: suffix.
Z8: Bid/Quote No. | AA8: 21-009
Z9: Vendor No.
A10: Vendor Name & Address
A11: Industrial Chemical, Inc. | M11: Per Georgia State Code 48.8, the City of Griffin is tax exempt for sale and use
A12: 2042 Montreat Drive | N12: taxes. Georgia Sales & Use Tax Exemption No. 20006246313
A13: Vestavia, AL 35216 | L13: Deliver to:
A14: orders@industrialchem.com; dianekalina@industrialchem.com | N14: City of Griffin
A15: Ph: | B15: 800-476-2042 | G15: Fax: | N15: Dept: Potato Creek
A16: Freight is FOB Destination Deliveries are accepted between the hours of 8:00 a.m. and 4 p.m. | F16: Mail all invoices* to: City of Griffin Attn- Accounts Payable P O Box T Griffin, GA 30224 | N16: 1150 County Line Rd
N17: Griffin, GA 30224
L19: ATTN: | N19: Robert Clark
A20: *Terms: Net 30 unless otherwise specified on PO | L20: Phone: | N20: 770-229-6609 | V20: Fax:
A21: - - ANY CHANGE ORDERS TO ANY PO OR WORK ORDERS MUST BE AUTHORIZED IN WRITING AND APPROVED. ALL INVOICES SUBMITTED FOR PAYMENT MUST REFERENCE A VALID PURCHASE ORDER NUMBER. - -
A22: - VENDORS MUST HAVE A CURRENT E-VERIFY AFFADAVIT ON FILE PRIOR TO PO PROCESSING - | Y22: On File? | AA22: Y/N | AB22: Y
A23: Description | K23: Account Number | T23: Quantity | V23: UOM | X23: Unit Price | Z23: Extended Totals
L24: - | N24: - | P24: - | R24: - | Z24: =SUM(X24*T24) -> 0.00
A25: Water Treatment Chemicals for FY 2022 | K25: 505 | L25: - | M25: 4332 | N25: - | O25: 53 | P25: - | Q25: 1120 | R25: - | S25: 0000 | T25: 6,000 | V25: lbs | X25: 0.9500 | Z25: 5,700.00
A26: (July 2021 - June 2022) | L26: - | N26: - | P26: - | R26: - | Z26: 0.00
A27: CHEMICALS: BLANKET PO | L27: - | N27: - | P27: - | R27: - | Z27: =SUM(X27*T27) -> 0.00
L28: - | N28: - | P28: - | R28: - | Z28: =SUM(X28*T28) -> 0.00
A29: IC 348 | L29: - | N29: - | P29: - | R29: - | Z29: =SUM(X29*T29) -> 0.00
A30: (no substitutions) | L30: - | N30: - | P30: - | R30: - | Z30: =SUM(X30*T30) -> 0.00
L31: - | N31: - | P31: - | R31: - | Z31: =SUM(X31*T31) -> 0.00
L32: - | N32: - | P32: - | R32: - | Z32: 0.00
L33: - | N33: - | P33: - | R33: - | Z33: 0.00
L34: - | N34: - | P34: - | R34: - | Z34: 0.00
L35: - | N35: - | P35: - | R35: - | Z35: 0.00
A36: CAPITAL PROJECT #: | L36: - | N36: - | P36: - | R36: -
A37: DISTRIBUTION & $$ | L37: - | N37: - | P37: - | R37: -
A38: COMMENTS: | V38: Totals: $ | Y38: =SUM(Z19:AB37) -> 5,700.00
A39: Robert Clark- 770-229-6609 x491
A40: Send invoices to agolden@cityofgriffin.com
A41: COG USE ONLY | M41: COG USE ONLY
A42: Pricing method: | F42: Water/Wastewater FY22
C43: Verbal / Phone
C44: Email/Mail/Fax | G44: Dept / Requestor / Date | T44: Purchasing / Date
A45: =AA8 -> 21-009 | C45: Bid / RFP #
C46: E-Verify Affidavit
A47: Vendor emailed copy? | G47: Department Mgr / Date | T47: Finance Director / Date
C48: Vendor Notified
A49: Invoice apprvd/attchd?
C50: PMT Approval | G50: City Manager / Date | T50: BOARD / Date
C51: Inv Attached

Sheet 008-IC 7284 blnkt
J2: City of Griffin, Georgia
J3: 100 S Hill Street
J4: P O Box T | Z4: DATE: | AA4: 2021-07-01
J5: Griffin, Georgia 30224
K6: (770) 229-6400 | Z6: Purchase Order No.
Z7: suffix.
Z8: Bid/Quote No. | AA8: 21-009
Z9: Vendor No.
A10: Vendor Name & Address
A11: Industrial Chemical, Inc. | M11: Per Georgia State Code 48.8, the City of Griffin is tax exempt for sale and use
A12: 2042 Montreat Drive | N12: taxes. Georgia Sales & Use Tax Exemption No. 20006246313
A13: Vestavia, AL 35216 | L13: Deliver to:
A14: orders@industrialchem.com; dianekalina@industrialchem.com | N14: City of Griffin
A15: Ph: | B15: 800-476-2042 | G15: Fax: | N15: Dept: Potato Creek
A16: Freight is FOB Destination Deliveries are accepted between the hours of 8:00 a.m. and 4 p.m. | F16: Mail all invoices* to: City of Griffin Attn- Accounts Payable P O Box T Griffin, GA 30224 | N16: 1150 County Line Rd
N17: Griffin, GA 30224
L19: ATTN: | N19: Robert Clark
A20: *Terms: Net 30 unless otherwise specified on PO | L20: Phone: | N20: 770-229-6609 | V20: Fax:
A21: - - ANY CHANGE ORDERS TO ANY PO OR WORK ORDERS MUST BE AUTHORIZED IN WRITING AND APPROVED. ALL INVOICES SUBMITTED FOR PAYMENT MUST REFERENCE A VALID PURCHASE ORDER NUMBER. - -
A22: - VENDORS MUST HAVE A CURRENT E-VERIFY AFFADAVIT ON FILE PRIOR TO PO PROCESSING - | Y22: On File? | AA22: Y/N | AB22: Y
A23: Description | K23: Account Number | T23: Quantity | V23: UOM | X23: Unit Price | Z23: Extended Totals
L24: - | N24: - | P24: - | R24: - | Z24: =SUM(X24*T24) -> 0.00
A25: Water Treatment Chemicals for FY 2022 | K25: 505 | L25: - | M25: 4332 | N25: - | O25: 53 | P25: - | Q25: 1120 | R25: - | S25: 0000 | T25: 2,000 | V25: lbs | X25: 1.4000 | Z25: 2,800.00
A26: (July 2021 - June 2022) | L26: - | N26: - | P26: - | R26: - | Z26: 0.00
A27: CHEMICALS: BLANKET PO | L27: - | N27: - | P27: - | R27: - | Z27: =SUM(X27*T27) -> 0.00
L28: - | N28: - | P28: - | R28: - | Z28: =SUM(X28*T28) -> 0.00
A29: IC 7284 | L29: - | N29: - | P29: - | R29: - | Z29: =SUM(X29*T29) -> 0.00
A30: (no substitutions) | L30: - | N30: - | P30: - | R30: - | Z30: =SUM(X30*T30) -> 0.00
L31: - | N31: - | P31: - | R31: - | Z31: =SUM(X31*T31) -> 0.00
L32: - | N32: - | P32: - | R32: - | Z32: 0.00
L33: - | N33: - | P33: - | R33: - | Z33: 0.00
L34: - | N34: - | P34: - | R34: - | Z34: 0.00
L35: - | N35: - | P35: - | R35: - | Z35: 0.00
A36: CAPITAL PROJECT #: | L36: - | N36: - | P36: - | R36: -
A37: DISTRIBUTION & $$ | L37: - | N37: - | P37: - | R37: -
A38: COMMENTS: | V38: Totals: $ | Y38: =SUM(Z19:AB37) -> 2,800.00
A39: Robert Clark- 770-229-6609 x491
A40: Send invoices to agolden@cityofgriffin.com
A41: COG USE ONLY | M41: COG USE ONLY
A42: Pricing method: | F42: Water/Wastewater FY22
C43: Verbal / Phone
C44: Email/Mail/Fax | G44: Dept / Requestor / Date | T44: Purchasing / Date
A45: =AA8 -> 21-009 | C45: Bid / RFP #
C46: E-Verify Affidavit
A47: Vendor emailed copy? | G47: Department Mgr / Date | T47: Finance Director / Date
C48: Vendor Notified
A49: Invoice apprvd/attchd?
C50: PMT Approval | G50: City Manager / Date | T50: BOARD / Date
C51: Inv Attached

Sheet 009-IC 7268SP6 blnkt
J2: City of Griffin, Georgia
J3: 100 S Hill Street
J4: P O Box T | Z4: DATE: | AA4: 2021-07-01
J5: Griffin, Georgia 30224
K6: (770) 229-6400 | Z6: Purchase Order No.
Z7: suffix.
Z8: Bid/Quote No. | AA8: 21-009
Z9: Vendor No.
A10: Vendor Name & Address
A11: Industrial Chemical, Inc. | M11: Per Georgia State Code 48.8, the City of Griffin is tax exempt for sale and use
A12: 2042 Montreat Drive | N12: taxes. Georgia Sales & Use Tax Exemption No. 20006246313
A13: Vestavia, AL 35216 | L13: Deliver to:
A14: orders@industrialchem.com; dianekalina@industrialchem.com | N14: City of Griffin
A15: Ph: | B15: 800-476-2042 | G15: Fax: | N15: Dept: appropriate water or wastewater plant
A16: Freight is FOB Destination Deliveries are accepted between the hours of 8:00 a.m. and 4 p.m. | F16: Mail all invoices* to: City of Griffin Attn- Accounts Payable P O Box T Griffin, GA 30224 | N16: confirm location at time of order
N17: Griffin, GA 30223
L19: ATTN: | N19: Ibn Shakir / Robert Clark
A20: *Terms: Net 30 unless otherwise specified on PO | L20: Phone: | N20: 678-692-0408 | V20: Fax:
A21: - - ANY CHANGE ORDERS TO ANY PO OR WORK ORDERS MUST BE AUTHORIZED IN WRITING AND APPROVED. ALL INVOICES SUBMITTED FOR PAYMENT MUST REFERENCE A VALID PURCHASE ORDER NUMBER. - -
A22: - VENDORS MUST HAVE A CURRENT E-VERIFY AFFADAVIT ON FILE PRIOR TO PO PROCESSING - | Y22: On File? | AA22: Y/N | AB22: Y
A23: Description | K23: Account Number | T23: Quantity | V23: UOM | X23: Unit Price | Z23: Extended Totals
L24: - | N24: - | P24: - | R24: - | Z24: =SUM(X24*T24) -> 0.00
A25: Water Treatment Chemicals for FY 2022 | K25: 505 | L25: - | M25: 4333 | N25: - | O25: 53 | P25: - | Q25: 1120 | R25: - | S25: 0000 | T25: 12,000 | V25: lbs | X25: 1.4000 | Z25: 16,800.00
A26: (July 2021 - June 2022) | K26: 505 | L26: - | M26: 4332 | N26: - | O26: 53 | P26: - | Q26: 1120 | R26: - | S26: 0000 | T26: 7,000 | V26: lbs | X26: 1.4000 | Z26: 9,800.00
A27: CHEMICALS: BLANKET PO | L27: - | N27: - | P27: - | R27: - | Z27: =SUM(X27*T27) -> 0.00
L28: - | N28: - | P28: - | R28: - | Z28: =SUM(X28*T28) -> 0.00
A29: IC 7268SP6 | L29: - | N29: - | P29: - | R29: - | Z29: =SUM(X29*T29) -> 0.00
A30: (no substitutions) | L30: - | N30: - | P30: - | R30: - | Z30: =SUM(X30*T30) -> 0.00
L31: - | N31: - | P31: - | R31: - | Z31: =SUM(X31*T31) -> 0.00
A32: VENDORS: DUE TO MULTIPLE LOCATIONS, | L32: - | N32: - | P32: - | R32: - | Z32: 0.00
A33: PLEASE CONFIRM DELIVERY LOCATION | L33: - | N33: - | P33: - | R33: - | Z33: 0.00
A34: WITH EACH REQUEST IF NEEDED | L34: - | N34: - | P34: - | R34: - | Z34: 0.00
L35: - | N35: - | P35: - | R35: - | Z35: 0.00
A36: CAPITAL PROJECT #: | L36: - | N36: - | P36: - | R36: -
A37: DISTRIBUTION & $$ | L37: - | N37: - | P37: - | R37: -
A38: COMMENTS: | V38: Totals: $ | Y38: =SUM(Z19:AB37) -> 26,600.00
A39: Ibn Shakir- 678-692-0408 x687 / Robert Clark- 770-229-6609 x491
A40: Send invoices to agolden@cityofgriffin.com
A41: COG USE ONLY | M41: COG USE ONLY
A42: Pricing method: | F42: Water/Wastewater FY22
C43: Verbal / Phone
C44: Email/Mail/Fax | G44: Dept / Requestor / Date | T44: Purchasing / Date
A45: =AA8 -> 21-009 | C45: Bid / RFP #
C46: E-Verify Affidavit
A47: Vendor emailed copy? | G47: Department Mgr / Date | T47: Finance Director / Date
C48: Vendor Notified
A49: Invoice apprvd/attchd?
C50: PMT Approval | G50: City Manager / Date | T50: BOARD / Date
C51: Inv Attached

Sheet 010-Liq Chlorine-150lbcyl-blnkt
J2: City of Griffin, Georgia
J3: 100 S Hill Street
J4: P O Box T | Z4: DATE: | AA4: 2021-07-01
J5: Griffin, Georgia 30224
K6: (770) 229-6400 | Z6: Purchase Order No.
Z7: suffix.
Z8: Bid/Quote No. | AA8: 21-009
Z9: Vendor No.
A10: Vendor Name & Address
A11: Brenntag Mid-South Inc. | M11: Per Georgia State Code 48.8, the City of Griffin is tax exempt for sale and use
A12: 3200 Moon Station Rd | N12: taxes. Georgia Sales & Use Tax Exemption No. 20006246313
A13: Kennesaw, GA 30144 | L13: Deliver to:
A14: baustin@brenntag.com | N14: City of Griffin
A15: Ph: | B15: 770-377-9518 | G15: Fax: | N15: Dept: Harry Simmons Plant
A16: Freight is FOB Destination Deliveries are accepted between the hours of 8:00 a.m. and 4 p.m. | F16: Mail all invoices* to: City of Griffin Attn- Accounts Payable P O Box T Griffin, GA 30224 | N16: 229 N Expressway
N17: Griffin, GA 30223
L19: ATTN: | N19: Martha Drolet
A20: *Terms: Net 30 unless otherwise specified on PO | L20: Phone: | N20: 770-233-2974 | V20: Fax:
A21: - - ANY CHANGE ORDERS TO ANY PO OR WORK ORDERS MUST BE AUTHORIZED IN WRITING AND APPROVED. ALL INVOICES SUBMITTED FOR PAYMENT MUST REFERENCE A VALID PURCHASE ORDER NUMBER. - -
A22: - VENDORS MUST HAVE A CURRENT E-VERIFY AFFADAVIT ON FILE PRIOR TO PO PROCESSING - | Y22: On File? | AA22: Y/N | AB22: Y
A23: Description | K23: Account Number | T23: Quantity | V23: UOM | X23: Unit Price | Z23: Extended Totals
L24: - | N24: - | P24: - | R24: - | Z24: =SUM(X24*T24) -> 0.00
A25: Water Treatment Chemicals for FY 2022 | K25: 505 | L25: - | M25: 4431 | N25: - | O25: 53 | P25: - | Q25: 1120 | R25: - | S25: 0000 | T25: 8 | V25: cyl | X25: 84.300 | Z25: 674.40
A26: (July 2021 - June 2022) | L26: - | N26: - | P26: - | R26: - | Z26: 0.00
A27: CHEMICALS: BLANKET PO | L27: - | N27: - | P27: - | R27: - | Z27: =SUM(X27*T27) -> 0.00
L28: - | N28: - | P28: - | R28: - | Z28: =SUM(X28*T28) -> 0.00
A29: Liquid Chlorine | L29: - | N29: - | P29: - | R29: - | Z29: =SUM(X29*T29) -> 0.00
A30: 150 lb cylinders | L30: - | N30: - | P30: - | R30: - | Z30: =SUM(X30*T30) -> 0.00
L31: - | N31: - | P31: - | R31: - | Z31: =SUM(X31*T31) -> 0.00
L32: - | N32: - | P32: - | R32: - | Z32: 0.00
L33: - | N33: - | P33: - | R33: - | Z33: 0.00
L34: - | N34: - | P34: - | R34: - | Z34: 0.00
L35: - | N35: - | P35: - | R35: - | Z35: 0.00
A36: CAPITAL PROJECT #: | L36: - | N36: - | P36: - | R36: -
A37: DISTRIBUTION & $$ | L37: - | N37: - | P37: - | R37: -
A38: COMMENTS: | V38: Totals: $ | Y38: =SUM(Z19:AB37) -> 674.40
A39: Martha Drolet - 770-233-2974 x647
A41: COG USE ONLY | M41: COG USE ONLY
A42: Pricing method: | F42: Water/Wastewater FY22
C43: Verbal / Phone
C44: Email/Mail/Fax | G44: Dept / Requestor / Date | T44: Purchasing / Date
A45: =AA8 -> 21-009 | C45: Bid / RFP #
C46: E-Verify Affidavit
A47: Vendor emailed copy? | G47: Department Mgr / Date | T47: Finance Director / Date
C48: Vendor Notified
A49: Invoice apprvd/attchd?
C50: PMT Approval | G50: City Manager / Date | T50: BOARD / Date
C51: Inv Attached

Sheet 011-Liq Chlorine-1toncyl-blnkt
J2: City of Griffin, Georgia
J3: 100 S Hill Street
J4: P O Box T | Z4: DATE: | AA4: 2021-07-01
J5: Griffin, Georgia 30224
K6: (770) 229-6400 | Z6: Purchase Order No.
Z7: suffix.
Z8: Bid/Quote No. | AA8: 21-009
Z9: Vendor No.
A10: Vendor Name & Address
A11: Brenntag Mid-South Inc. | M11: Per Georgia State Code 48.8, the City of Griffin is tax exempt for sale and use
A12: 3200 Moon Station Rd | N12: taxes. Georgia Sales & Use Tax Exemption No. 20006246313
A13: Kennesaw, GA 30144 | L13: Deliver to:
A14: baustin@brenntag.com | N14: City of Griffin
A15: Ph: | B15: 770-377-9518 | G15: Fax: | N15: Dept: appropriate water or wastewater plant
A16: Freight is FOB Destination Deliveries are accepted between the hours of 8:00 a.m. and 4 p.m. | F16: Mail all invoices* to: City of Griffin Attn- Accounts Payable P O Box T Griffin, GA 30224 | N16: confirm location at time of order
N17: Griffin, GA 30223
L19: ATTN: | N19: Martha Drolet
A20: *Terms: Net 30 unless otherwise specified on PO | L20: Phone: | V20: Fax:
A21: - - ANY CHANGE ORDERS TO ANY PO OR WORK ORDERS MUST BE AUTHORIZED IN WRITING AND APPROVED. ALL INVOICES SUBMITTED FOR PAYMENT MUST REFERENCE A VALID PURCHASE ORDER NUMBER. - -
A22: - VENDORS MUST HAVE A CURRENT E-VERIFY AFFADAVIT ON FILE PRIOR TO PO PROCESSING - | Y22: On File? | AA22: Y/N | AB22: Y
A23: Description | K23: Account Number | T23: Quantity | V23: UOM | X23: Unit Price | Z23: Extended Totals
Z24: =SUM(X24*T24) -> 0.00
A25: Water Treatment Chemicals for FY 2022 | K25: 505 | L25: - | M25: 4431 | N25: - | O25: 53 | P25: - | Q25: 1120 | R25: - | S25: 0000 | T25: 28 | V25: cyl | X25: 684.000 | Z25: 19,152.00
A26: (July 2021 - June 2022) | L26: - | N26: - | P26: - | R26: - | Z26: 0.00
A27: CHEMICALS: BLANKET PO | L27: - | N27: - | P27: - | R27: - | Z27: =SUM(X27*T27) -> 0.00
L28: - | N28: - | P28: - | R28: - | Z28: =SUM(X28*T28) -> 0.00
A29: Liquid Chlorine | L29: - | N29: - | P29: - | R29: - | T29: =SUM($T$24*V29) -> 0.00 | Z29: =SUM(X29*T29) -> 0.00
A30: 1 ton cylinders | L30: - | N30: - | P30: - | R30: - | Z30: =SUM(X30*T30) -> 0.00
L31: - | N31: - | P31: - | R31: - | Z31: =SUM(X31*T31) -> 0.00
L32: - | N32: - | P32: - | R32: - | Z32: 0.00
L33: - | N33: - | P33: - | R33: - | Z33: 0.00
L34: - | N34: - | P34: - | R34: - | Z34: 0.00
L35: - | N35: - | P35: - | R35: - | Z35: 0.00
A36: CAPITAL PROJECT #: | L36: - | N36: - | P36: - | R36: -
A37: DISTRIBUTION & $$ | L37: - | N37: - | P37: - | R37: -
A38: COMMENTS: | V38: Totals: $ | Y38: =SUM(Z19:AB37) -> 19,152.00
A39: Martha Drolet - 770-233-2974 x647
A41: COG USE ONLY | M41: COG USE ONLY
A42: Pricing method: | F42: Water/Wastewater FY22
C43: Verbal / Phone
C44: Email/Mail/Fax | G44: Dept / Requestor / Date | T44: Purchasing / Date
A45: =AA8 -> 21-009 | C45: Bid / RFP #
C46: E-Verify Affidavit
A47: Vendor emailed copy? | G47: Department Mgr / Date | T47: Finance Director / Date
C48: Vendor Notified
A49: Invoice apprvd/attchd?
C50: PMT Approval | G50: City Manager / Date | T50: BOARD / Date
C51: Inv Attached

Sheet 012-Liq Lime-blnkt
J2: City of Griffin, Georgia
J3: 100 S Hill Street
J4: P O Box T | Z4: DATE: | AA4: 2021-07-01
J5: Griffin, Georgia 30224
K6: (770) 229-6400 | Z6: Purchase Order No.
Z7: suffix.
Z8: Bid/Quote No. | AA8: 21-009
Z9: Vendor No.
A10: Vendor Name & Address
A11: Burnett Lime Company | M11: Per Georgia State Code 48.8, the City of Griffin is tax exempt for sale and use
A12: 7095 HWY 11 | N12: taxes. Georgia Sales & Use Tax Exemption No. 20006246313
A13: Campobello, SC 29322 | L13: Deliver to:
A14: hburnett@burnett-inc.com | N14: City of Griffin
A15: Ph: | B15: 864-592-1658 | G15: Fax: | N15: Dept: Still Branch
A16: Freight is FOB Destination Deliveries are accepted between the hours of 8:00 a.m. and 4 p.m. | F16: Mail all invoices* to: City of Griffin Attn- Accounts Payable P O Box T Griffin, GA 30224 | N16: 2045 Flat Shoals Rd
N17: Concord, GA 30206
L19: ATTN: | N19: Mike Melton
A20: *Terms: Net 30 unless otherwise specified on PO | L20: Phone: | N20: 678-692-0407 | V20: Fax:
A21: - - ANY CHANGE ORDERS TO ANY PO OR WORK ORDERS MUST BE AUTHORIZED IN WRITING AND APPROVED. ALL INVOICES SUBMITTED FOR PAYMENT MUST REFERENCE A VALID PURCHASE ORDER NUMBER. - -
A22: - VENDORS MUST HAVE A CURRENT E-VERIFY AFFADAVIT ON FILE PRIOR TO PO PROCESSING - | Y22: On File? | AA22: Y/N | AB22: Y
A23: Description | K23: Account Number | T23: Quantity | V23: UOM | X23: Unit Price | Z23: Extended Totals
L24: - | N24: - | P24: - | R24: - | Z24: =SUM(X24*T24) -> 0.00
A25: Water Treatment Chemicals for FY 2022 | K25: 505 | L25: - | M25: 4432 | N25: - | O25: 53 | P25: - | Q25: 1120 | R25: - | S25: 0000 | T25: 300,000 | V25: lbs | X25: 0.0570 | Z25: 17,100.00
A26: (July 2021 - June 2022) | L26: - | N26: - | P26: - | R26: - | Z26: 0.00
A27: CHEMICALS: BLANKET PO | L27: - | N27: - | P27: - | R27: - | Z27: =SUM(X27*T27) -> 0.00
L28: - | N28: - | P28: - | R28: - | Z28: =SUM(X28*T28) -> 0.00
A29: Liquid Lime-bulk | L29: - | N29: - | P29: - | R29: - | Z29: =SUM(X29*T29) -> 0.00
A30: (no substitutions) | L30: - | N30: - | P30: - | R30: - | Z30: =SUM(X30*T30) -> 0.00
L31: - | N31: - | P31: - | R31: - | Z31: =SUM(X31*T31) -> 0.00
L32: - | N32: - | P32: - | R32: - | Z32: 0.00
L33: - | N33: - | P33: - | R33: - | Z33: 0.00
L34: - | N34: - | P34: - | R34: - | Z34: 0.00
L35: - | N35: - | P35: - | R35: - | Z35: 0.00
A36: CAPITAL PROJECT #: | L36: - | N36: - | P36: - | R36: -
A37: DISTRIBUTION & $$ | L37: - | N37: - | P37: - | R37: -
A38: COMMENTS: | V38: Totals: $ | Y38: =SUM(Z19:AB37) -> 17,100.00
A39: Mike Melton - 678-692-0407
A41: COG USE ONLY | M41: COG USE ONLY
A42: Pricing method: | F42: Water/Wastewater FY22
C43: Verbal / Phone
C44: Email/Mail/Fax | G44: Dept / Requestor / Date | T44: Purchasing / Date
A45: =AA8 -> 21-009 | C45: Bid / RFP #
C46: E-Verify Affidavit
A47: Vendor emailed copy? | G47: Department Mgr / Date | T47: Finance Director / Date
C48: Vendor Notified
A49: Invoice apprvd/attchd?
C50: PMT Approval | G50: City Manager / Date | T50: BOARD / Date
C51: Inv Attached

Sheet 013-Phosphate, Liq -blnkt
J2: City of Griffin, Georgia
J3: 100 S Hill Street
J4: P O Box T | Z4: DATE: | AA4: 2021-07-01
J5: Griffin, Georgia 30224
K6: (770) 229-6400 | Z6: Purchase Order No.
Z7: suffix.
Z8: Bid/Quote No. | AA8: 21-009
Z9: Vendor No.
A10: Vendor Name & Address
A11: Carus Corporation | M11: Per Georgia State Code 48.8, the City of Griffin is tax exempt for sale and use
A12: 315 Fifth St | N12: taxes. Georgia Sales & Use Tax Exemption No. 20006246313
A13: Peru, IL 61354 | L13: Deliver to:
A14: orders@caruscorporation.com | N14: City of Griffin
A15: Ph: | B15: 800-435-6856 | G15: Fax: | N15: Dept: appropriate water or wastewater plant
A16: Freight is FOB Destination Deliveries are accepted between the hours of 8:00 a.m. and 4 p.m. | F16: Mail all invoices* to: City of Griffin Attn- Accounts Payable P O Box T Griffin, GA 30224 | N16: confirm location at time of order
N17: Griffin, GA 30223
L19: ATTN: | N19: Martha Drolet / Mike Melton
A20: *Terms: Net 30 unless otherwise specified on PO | L20: Phone: | V20: Fax:
A21: - - ANY CHANGE ORDERS TO ANY PO OR WORK ORDERS MUST BE AUTHORIZED IN WRITING AND APPROVED. ALL INVOICES SUBMITTED FOR PAYMENT MUST REFERENCE A VALID PURCHASE ORDER NUMBER. - -
A22: - VENDORS MUST HAVE A CURRENT E-VERIFY AFFADAVIT ON FILE PRIOR TO PO PROCESSING - | Y22: On File? | AA22: Y/N | AB22: Y
A23: Description | K23: Account Number | T23: Quantity | V23: UOM | X23: Unit Price | Z23: Extended Totals
K24: Total quantity: | T24: 65,000 | V24: wet lbs | Z24: =SUM(X24*T24) -> 0.00
A25: Water Treatment Chemicals for FY 2022 | K25: 505 | L25: - | M25: 4431 | N25: - | O25: 53 | P25: - | Q25: 1120 | R25: - | S25: 0000 | T25: 44,000 | V25: wet lbs | X25: 0.495 | Z25: 21,780.00
A26: (July 2021 - June 2022) | K26: 505 | L26: - | M26: 4432 | N26: - | O26: 53 | P26: - | Q26: 1120 | R26: - | S26: 0000 | T26: 21,000 | V26: wet lbs | X26: 0.495 | Z26: 10,395.00
A27: CHEMICALS: BLANKET PO | L27: - | N27: - | P27: - | R27: - | Z27: =SUM(X27*T27) -> 0.00
L28: - | N28: - | P28: - | R28: - | Z28: =SUM(X28*T28) -> 0.00
A29: Liquid Phosphate | L29: - | N29: - | P29: - | R29: - | Z29: =SUM(X29*T29) -> 0.00
A30: CARUS 8500 | L30: - | N30: - | P30: - | R30: - | Z30: =SUM(X30*T30) -> 0.00
L31: - | N31: - | P31: - | R31: - | Z31: =SUM(X31*T31) -> 0.00
A32: VENDORS: DUE TO MULTIPLE LOCATIONS, | L32: - | N32: - | P32: - | R32: - | Z32: 0.00
A33: PLEASE CONFIRM DELIVERY LOCATION | L33: - | N33: - | P33: - | R33: - | Z33: 0.00
A34: WITH EACH REQUEST IF NEEDED | L34: - | N34: - | P34: - | R34: - | Z34: 0.00
L35: - | N35: - | P35: - | R35: - | Z35: 0.00
A36: CAPITAL PROJECT #: | L36: - | N36: - | P36: - | R36: -
A37: DISTRIBUTION & $$ | L37: - | N37: - | P37: - | R37: -
A38: COMMENTS: | V38: Totals: $ | Y38: =SUM(Z19:AB37) -> 32,175.00
A39: Martha Drolet - 770-233-2974 x647; Mike Melton - 678-692-0407 x623
A41: COG USE ONLY | M41: COG USE ONLY
A42: Pricing method: | F42: Water/Wastewater FY22
C43: Verbal / Phone
C44: Email/Mail/Fax | G44: Dept / Requestor / Date | T44: Purchasing / Date
A45: =AA8 -> 21-009 | C45: Bid / RFP #
C46: E-Verify Affidavit
A47: Vendor emailed copy? | G47: Department Mgr / Date | T47: Finance Director / Date
C48: Vendor Notified
A49: Invoice apprvd/attchd?
C50: PMT Approval | G50: City Manager / Date | T50: BOARD / Date
C51: Inv Attached

Sheet 014-Magnifloc-blnkt
J2: City of Griffin, Georgia
J3: 100 S Hill Street
J4: P O Box T | Z4: DATE: | AA4: 2021-07-01
J5: Griffin, Georgia 30224
K6: (770) 229-6400 | Z6: Purchase Order No.
Z7: suffix.
Z8: Bid/Quote No. | AA8: 21-009
Z9: Vendor No.
A10: Vendor Name & Address
A11: Sterling Water Technologies | M11: Per Georgia State Code 48.8, the City of Griffin is tax exempt for sale and use
A12: 902 S High St | N12: taxes. Georgia Sales & Use Tax Exemption No. 20006246313
A13: Columbia, TN 38401 | L13: Deliver to:
A14: sales@sterlingwatertech.com | N14: City of Griffin
A15: Ph: | B15: 931-540-1334 | G15: Fax: | N15: Dept: Harry Simmons Plant
A16: Freight is FOB Destination Deliveries are accepted between the hours of 8:00 a.m. and 4 p.m. | F16: Mail all invoices* to: City of Griffin Attn- Accounts Payable P O Box T Griffin, GA 30224 | N16: 229 N Expressway
N17: Griffin, GA 30223
L19: ATTN: | N19: Martha Drolet
A20: *Terms: Net 30 unless otherwise specified on PO | L20: Phone: | V20: Fax:
A21: - - ANY CHANGE ORDERS TO ANY PO OR WORK ORDERS MUST BE AUTHORIZED IN WRITING AND APPROVED. ALL INVOICES SUBMITTED FOR PAYMENT MUST REFERENCE A VALID PURCHASE ORDER NUMBER. - -
A22: - VENDORS MUST HAVE A CURRENT E-VERIFY AFFADAVIT ON FILE PRIOR TO PO PROCESSING - | Y22: On File? | AA22: Y/N | AB22: Y
A23: Description | K23: Account Number | T23: Quantity | V23: UOM | X23: Unit Price | Z23: Extended Totals
L24: - | N24: - | P24: - | R24: - | Z24: =SUM(X24*T24) -> 0.00
A25: Water Treatment Chemicals for FY 2022 | K25: 505 | L25: - | M25: 4431 | N25: - | O25: 53 | P25: - | Q25: 1120 | R25: - | S25: 0000 | T25: 20,000 | V25: wet lbs | X25: 1.0450 | Z25: 20,900.00
A26: (July 2021 - June 2022) | L26: - | N26: - | P26: - | R26: - | Z26: 0.00
A27: CHEMICALS: BLANKET PO | L27: - | N27: - | P27: - | R27: - | Z27: =SUM(X27*T27) -> 0.00
L28: - | N28: - | P28: - | R28: - | Z28: =SUM(X28*T28) -> 0.00
A29: Magnafloc LT7989 (no substitutions) | L29: - | N29: - | P29: - | R29: - | Z29: =SUM(X29*T29) -> 0.00
A30: 55 gal drums | L30: - | N30: - | P30: - | R30: - | Z30: =SUM(X30*T30) -> 0.00
L31: - | N31: - | P31: - | R31: - | Z31: =SUM(X31*T31) -> 0.00
L32: - | N32: - | P32: - | R32: - | Z32: 0.00
L33: - | N33: - | P33: - | R33: - | Z33: 0.00
L34: - | N34: - | P34: - | R34: - | Z34: 0.00
L35: - | N35: - | P35: - | R35: - | Z35: 0.00
A36: CAPITAL PROJECT #: | L36: - | N36: - | P36: - | R36: -
A37: DISTRIBUTION & $$ | L37: - | N37: - | P37: - | R37: -
A38: COMMENTS: | V38: Totals: $ | Y38: =SUM(Z19:AB37) -> 20,900.00
A39: Martha Drolet - 770-233-2974 x647
A41: COG USE ONLY | M41: COG USE ONLY
A42: Pricing method: | F42: Water/Wastewater FY22
C43: Verbal / Phone
C44: Email/Mail/Fax | G44: Dept / Requestor / Date | T44: Purchasing / Date
A45: =AA8 -> 21-009 | C45: Bid / RFP #
C46: E-Verify Affidavit
A47: Vendor emailed copy? | G47: Department Mgr / Date | T47: Finance Director / Date
C48: Vendor Notified
A49: Invoice apprvd/attchd?
C50: PMT Approval | G50: City Manager / Date | T50: BOARD / Date
C51: Inv Attached

Sheet 015-Pot Permanganate-blnkt
J2: City of Griffin, Georgia
J3: 100 S Hill Street
J4: P O Box T | Z4: DATE: | AA4: 2021-07-01
J5: Griffin, Georgia 30224
K6: (770) 229-6400 | Z6: Purchase Order No.
Z7: suffix.
Z8: Bid/Quote No. | AA8: 21-009
Z9: Vendor No.
A10: Vendor Name & Address
A11: Chemrite | M11: Per Georgia State Code 48.8, the City of Griffin is tax exempt for sale and use
A12: 5202 Belle Wood Court, Ste 104 | N12: taxes. Georgia Sales & Use Tax Exemption No. 20006246313
A13: Buford, GA 30518 | L13: Deliver to:
A14: anne@chemrite.com / sales@chemrite.com | N14: City of Griffin
A15: Ph: | B15: 770-271-5576 | G15: Fax: | N15: Dept: Still Branch
A16: Freight is FOB Destination Deliveries are accepted between the hours of 8:00 a.m. and 4 p.m. | F16: Mail all invoices* to: City of Griffin Attn- Accounts Payable P O Box T Griffin, GA 30224 | N16: 2045 Flat Shoals Rd
N17: Concord, GA 30206
L19: ATTN: | N19: Mike Melton
A20: *Terms: Net 30 unless otherwise specified on PO | L20: Phone: | N20: 678-692-0407 | V20: Fax:
A21: - - ANY CHANGE ORDERS TO ANY PO OR WORK ORDERS MUST BE AUTHORIZED IN WRITING AND APPROVED. ALL INVOICES SUBMITTED FOR PAYMENT MUST REFERENCE A VALID PURCHASE ORDER NUMBER. - -
A22: - VENDORS MUST HAVE A CURRENT E-VERIFY AFFADAVIT ON FILE PRIOR TO PO PROCESSING - | Y22: On File? | AA22: Y/N | AB22: Y
A23: Description | K23: Account Number | T23: Quantity | V23: UOM | X23: Unit Price | Z23: Extended Totals
L24: - | N24: - | P24: - | R24: - | Z24: =SUM(X24*T24) -> 0.00 | AI24: =SUM(T24*X25) -> 0
A25: Water Treatment Chemicals for FY 2022 | K25: 505 | L25: - | M25: 4432 | N25: - | O25: 53 | P25: - | Q25: 1120 | R25: - | S25: 0000 | T25: 6,000.00 | V25: lbs | X25: 1.6170 | Z25: =SUM(T25*X25) -> 9,702.00 | AF25: =SUM(T24*0.72) -> 0.000
A26: (July 2021 - June 2022) | L26: - | N26: - | P26: - | R26: - | Z26: =SUM(T26*X26) -> 0.00 | AF26: =SUM(T24*0.26) -> 0.000
A27: CHEMICALS: BLANKET PO | L27: - | N27: - | P27: - | R27: - | Z27: 0.00 | AF27: =SUM(T26*0.02) -> 0.000
L28: - | N28: - | P28: - | R28: - | Z28: =SUM(X28*T28) -> 0.00
A29: Potassium Permanganate | L29: - | N29: - | P29: - | R29: - | Z29: 0.00
A30: 55-lb containers | L30: - | N30: - | P30: - | R30: - | Z30: 0.00 | AF30: =SUM(T25/T24) ->  | AI30: =SUM(T24*AF30) -> 
L31: - | N31: - | P31: - | R31: - | Z31: 0.00 | AF31: =SUM(T26/T24) ->  | AI31: =SUM(T24*AF31) -> 
L32: - | N32: - | P32: - | R32: - | Z32: 0.00 | AF32: =SUM(T27/T24) ->  | AI32: =SUM(T24*AF32) -> 
L33: - | N33: - | P33: - | R33: - | Z33: 0.00
L34: - | N34: - | P34: - | R34: - | Z34: 0.00
L35: - | N35: - | P35: - | R35: - | Z35: =SUM(X35*T35) -> 0.00
A36: CAPITAL PROJECT #: | L36: - | N36: - | P36: - | R36: -
A37: DISTRIBUTION & $$ | L37: - | N37: - | P37: - | R37: -
A38: COMMENTS: | V38: Totals: $ | Y38: =SUM(Z25:AB36) -> 9,702.00
A39: Mike Melton - 678-692-0407 x623
A41: COG USE ONLY | M41: COG USE ONLY
A42: Pricing method: | F42: Water/Wastewater FY22
C43: Verbal / Phone
C44: Email/Mail/Fax | G44: Dept / Requestor / Date | T44: Purchasing / Date
A45: =AA8 -> 21-009 | C45: Bid / RFP #
C46: E-Verify Affidavit
A47: Vendor emailed copy? | G47: Department Mgr / Date | T47: Finance Director / Date
C48: Vendor Notified
A49: Invoice apprvd/attchd?
C50: PMT Approval | G50: City Manager / Date | T50: BOARD / Date
C51: Inv Attached

Sheet 016-Soda Ash-blnkt
J2: City of Griffin, Georgia
J3: 100 S Hill Street
J4: P O Box T | Z4: DATE: | AA4: 2021-07-01
J5: Griffin, Georgia 30224
K6: (770) 229-6400 | Z6: Purchase Order No.
Z7: suffix.
Z8: Bid/Quote No. | AA8: 21-009
Z9: Vendor No.
A10: Vendor Name & Address
A11: Colonial Chemical Solutions, Inc | M11: Per Georgia State Code 48.8, the City of Griffin is tax exempt for sale and use
A12: 101 N Lathrop Ave | N12: taxes. Georgia Sales & Use Tax Exemption No. 20006246313
A13: Savannah, GA 31415 | L13: Deliver to:
A14: tbutler@colonialchemicals.com; ccsatlanta@colonialchemicals.com | N14: City of Griffin
A15: Ph: | B15: 888-502-0318 | G15: Fax: | N15: Dept: Harry Simmons Plant
A16: Freight is FOB Destination Deliveries are accepted between the hours of 8:00 a.m. and 4 p.m. | F16: Mail all invoices* to: City of Griffin Attn- Accounts Payable P O Box T Griffin, GA 30224 | N16: 229 N Expressway
N17: Griffin, GA 30223
L19: ATTN: | N19: Martha Drolet
A20: *Terms: Net 30 unless otherwise specified on PO | L20: Phone: | N20: 770-233-2974 | V20: Fax:
A21: - - ANY CHANGE ORDERS TO ANY PO OR WORK ORDERS MUST BE AUTHORIZED IN WRITING AND APPROVED. ALL INVOICES SUBMITTED FOR PAYMENT MUST REFERENCE A VALID PURCHASE ORDER NUMBER. - -
A22: - VENDORS MUST HAVE A CURRENT E-VERIFY AFFADAVIT ON FILE PRIOR TO PO PROCESSING - | Y22: On File? | AA22: Y/N | AB22: Y
A23: Description | K23: Account Number | T23: Quantity | V23: UOM | X23: Unit Price | Z23: Extended Totals
L24: - | N24: - | P24: - | R24: - | Z24: =SUM(X24*T24) -> 0.00
A25: Water Treatment Chemicals for FY 2022 | K25: 505 | L25: - | M25: 4431 | N25: - | O25: 53 | P25: - | Q25: 1120 | R25: - | S25: 0000 | T25: 30,000 | V25: lbs | X25: 0.2750 | Z25: 8,250.00
A26: (July 2021 - June 2022) | L26: - | N26: - | P26: - | R26: - | Z26: 0.00
A27: CHEMICALS: BLANKET PO | L27: - | N27: - | P27: - | R27: - | Z27: =SUM(X27*T27) -> 0.00
L28: - | N28: - | P28: - | R28: - | Z28: =SUM(X28*T28) -> 0.00
A29: Soda Ash (50-lb bags) | L29: - | N29: - | P29: - | R29: - | T29: =SUM($T$24*V29) -> 0 | Z29: =SUM(X29*T29) -> 0.00
L30: - | N30: - | P30: - | R30: - | Z30: =SUM(X30*T30) -> 0.00
L31: - | N31: - | P31: - | R31: - | Z31: =SUM(X31*T31) -> 0.00
L32: - | N32: - | P32: - | R32: - | Z32: 0.00
L33: - | N33: - | P33: - | R33: - | Z33: 0.00
L34: - | N34: - | P34: - | R34: - | Z34: 0.00
L35: - | N35: - | P35: - | R35: - | Z35: 0.00
A36: CAPITAL PROJECT #: | L36: - | N36: - | P36: - | R36: -
A37: DISTRIBUTION & $$ | L37: - | N37: - | P37: - | R37: -
A38: COMMENTS: | V38: Totals: $ | Y38: =SUM(Z19:AB37) -> 8,250.00
A39: Martha Drolet - 770-233-2974 x647
A41: COG USE ONLY | M41: COG USE ONLY
A42: Pricing method: | F42: Water/Wastewater FY22
C43: Verbal / Phone
C44: Email/Mail/Fax | G44: Dept / Requestor / Date | T44: Purchasing / Date
A45: =AA8 -> 21-009 | C45: Bid / RFP #
C46: E-Verify Affidavit
A47: Vendor emailed copy? | G47: Department Mgr / Date | T47: Finance Director / Date
C48: Vendor Notified
A49: Invoice apprvd/attchd?
C50: PMT Approval | G50: City Manager / Date | T50: BOARD / Date
C51: Inv Attached

Sheet 017-Sodium Chlorite-blnkt
J2: City of Griffin, Georgia
J3: 100 S Hill Street
J4: P O Box T | Z4: DATE: | AA4: 2021-07-01
J5: Griffin, Georgia 30224
K6: (770) 229-6400 | Z6: Purchase Order No.
Z7: suffix.
Z8: Bid/Quote No. | AA8: 21-009
Z9: Vendor No.
A10: Vendor Name & Address
A11: International Dioxide, Inc. (ERCOPure) | M11: Per Georgia State Code 48.8, the City of Griffin is tax exempt for sale and use
A12: 40 Whitecap Drive | N12: taxes. Georgia Sales & Use Tax Exemption No. 20006246313
A13: North Kingstown, RI 02852 | L13: Deliver to:
A14: IDI.CS@ercoworldwide.com | N14: City of Griffin
A15: Ph: | B15: 800-477-6071 | G15: Fax: | N15: Dept: appropriate water or wastewater plant
A16: Freight is FOB Destination Deliveries are accepted between the hours of 8:00 a.m. and 4 p.m. | F16: Mail all invoices* to: City of Griffin Attn- Accounts Payable P O Box T Griffin, GA 30224 | N16: confirm location at time of order
N17: Griffin, GA 30223
L19: ATTN: | N19: Martha Drolet
A20: *Terms: Net 30 unless otherwise specified on PO | L20: Phone: | V20: Fax:
A21: - - ANY CHANGE ORDERS TO ANY PO OR WORK ORDERS MUST BE AUTHORIZED IN WRITING AND APPROVED. ALL INVOICES SUBMITTED FOR PAYMENT MUST REFERENCE A VALID PURCHASE ORDER NUMBER. - -
A22: - VENDORS MUST HAVE A CURRENT E-VERIFY AFFADAVIT ON FILE PRIOR TO PO PROCESSING - | Y22: On File? | AA22: Y/N | AB22: Y
A23: Description | K23: Account Number | T23: Quantity | V23: UOM | X23: Unit Price | Z23: Extended Totals
Z24: =SUM(X24*T24) -> 0.00
A25: Water Treatment Chemicals for FY 2022 | K25: 505 | L25: - | M25: 4431 | N25: - | O25: 53 | P25: - | Q25: 1120 | R25: - | S25: 0000 | T25: 100,000 | V25: wet lbs | X25: 0.539 | Z25: 53,900.00
A26: (July 2021 - June 2022) | L26: - | N26: - | P26: - | R26: - | Z26: 0.00
A27: CHEMICALS: BLANKET PO | L27: - | N27: - | P27: - | R27: - | Z27: =SUM(X27*T27) -> 0.00
L28: - | N28: - | P28: - | R28: - | Z28: =SUM(X28*T28) -> 0.00
A29: Sodium Chlorite 25% | L29: - | N29: - | P29: - | R29: - | Z29: =SUM(X29*T29) -> 0.00
L30: - | N30: - | P30: - | R30: - | Z30: =SUM(X30*T30) -> 0.00
L31: - | N31: - | P31: - | R31: - | Z31: =SUM(X31*T31) -> 0.00
L32: - | N32: - | P32: - | R32: - | Z32: 0.00
L33: - | N33: - | P33: - | R33: - | Z33: 0.00
L34: - | N34: - | P34: - | R34: - | Z34: 0.00
L35: - | N35: - | P35: - | R35: - | Z35: 0.00
A36: CAPITAL PROJECT #: | L36: - | N36: - | P36: - | R36: -
A37: DISTRIBUTION & $$ | L37: - | N37: - | P37: - | R37: -
A38: COMMENTS: | V38: Totals: $ | Y38: =SUM(Z19:AB37) -> 53,900.00
A39: Martha Drolet - 770-233-2974 x647
A41: COG USE ONLY | M41: COG USE ONLY
A42: Pricing method: | F42: Water/Wastewater FY22
C43: Verbal / Phone
C44: Email/Mail/Fax | G44: Dept / Requestor / Date | T44: Purchasing / Date
A45: =AA8 -> 21-009 | C45: Bid / RFP #
C46: E-Verify Affidavit
A47: Vendor emailed copy? | G47: Department Mgr / Date | T47: Finance Director / Date
C48: Vendor Notified
A49: Invoice apprvd/attchd?
C50: PMT Approval | G50: City Manager / Date | T50: BOARD / Date
C51: Inv Attached

Sheet 018-Sodium Permanganate-blnkt
J2: City of Griffin, Georgia
J3: 100 S Hill Street
J4: P O Box T | Z4: DATE: | AA4: 2021-07-01
J5: Griffin, Georgia 30224
K6: (770) 229-6400 | Z6: Purchase Order No.
Z7: suffix.
Z8: Bid/Quote No. | AA8: 21-009
Z9: Vendor No.
A10: Vendor Name & Address
A11: Chemrite | M11: Per Georgia State Code 48.8, the City of Griffin is tax exempt for sale and use
A12: 5202 Belle Wood Court, Ste 104 | N12: taxes. Georgia Sales & Use Tax Exemption No. 20006246313
A13: Buford, GA 30518 | L13: Deliver to:
A14: anne@chemrite.com / sales@chemrite.com | N14: City of Griffin
A15: Ph: | B15: 770-271-5576 | G15: Fax: | N15: Dept: Harry Simmons Plant
A16: Freight is FOB Destination Deliveries are accepted between the hours of 8:00 a.m. and 4 p.m. | F16: Mail all invoices* to: City of Griffin Attn- Accounts Payable P O Box T Griffin, GA 30224 | N16: 229 N Expressway
N17: Griffin, GA 30223
L19: ATTN: | N19: Martha Drolet
A20: *Terms: Net 30 unless otherwise specified on PO | L20: Phone: | N20: 770-233-2974 | V20: Fax:
A21: - - ANY CHANGE ORDERS TO ANY PO OR WORK ORDERS MUST BE AUTHORIZED IN WRITING AND APPROVED. ALL INVOICES SUBMITTED FOR PAYMENT MUST REFERENCE A VALID PURCHASE ORDER NUMBER. - -
A22: - VENDORS MUST HAVE A CURRENT E-VERIFY AFFADAVIT ON FILE PRIOR TO PO PROCESSING - | Y22: On File? | AA22: Y/N | AB22: Y
A23: Description | K23: Account Number | T23: Quantity | V23: UOM | X23: Unit Price | Z23: Extended Totals
L24: - | N24: - | P24: - | R24: - | Z24: =SUM(X24*T24) -> 0.00
A25: Water Treatment Chemicals for FY 2022 | K25: 505 | L25: - | M25: 4431 | N25: - | O25: 53 | P25: - | Q25: 1120 | R25: - | S25: 0000 | T25: 3,250 | V25: gal | X25: 9.0990 | Z25: 29,571.75
A26: (July 2021 - June 2022) | L26: - | N26: - | P26: - | R26: - | Z26: 0.00
A27: CHEMICALS: BLANKET PO | L27: - | N27: - | P27: - | R27: - | Z27: =SUM(X27*T27) -> 0.00
L28: - | N28: - | P28: - | R28: - | Z28: =SUM(X28*T28) -> 0.00
A29: Sodium Permanganate 20% | L29: - | N29: - | P29: - | R29: - | T29: =SUM($T$24*V29) -> 0 | Z29: =SUM(X29*T29) -> 0.00
L30: - | N30: - | P30: - | R30: - | Z30: =SUM(X30*T30) -> 0.00
L31: - | N31: - | P31: - | R31: - | Z31: =SUM(X31*T31) -> 0.00
L32: - | N32: - | P32: - | R32: - | Z32: 0.00
L33: - | N33: - | P33: - | R33: - | Z33: 0.00
L34: - | N34: - | P34: - | R34: - | Z34: 0.00
L35: - | N35: - | P35: - | R35: - | Z35: 0.00
A36: CAPITAL PROJECT #: | L36: - | N36: - | P36: - | R36: -
A37: DISTRIBUTION & $$ | L37: - | N37: - | P37: - | R37: -
A38: COMMENTS: | V38: Totals: $ | Y38: =SUM(Z19:AB37) -> 29,571.75
A39: Martha Drolet - 770-233-2974 x647
A41: COG USE ONLY | M41: COG USE ONLY
A42: Pricing method: | F42: Water/Wastewater FY22
C43: Verbal / Phone
C44: Email/Mail/Fax | G44: Dept / Requestor / Date | T44: Purchasing / Date
A45: =AA8 -> 21-009 | C45: Bid / RFP #
C46: E-Verify Affidavit
A47: Vendor emailed copy? | G47: Department Mgr / Date | T47: Finance Director / Date
C48: Vendor Notified
A49: Invoice apprvd/attchd?
C50: PMT Approval | G50: City Manager / Date | T50: BOARD / Date
C51: Inv Attached

Sheet 019-Sod Silico Flouride-blnkt
J2: City of Griffin, Georgia
J3: 100 S Hill Street
J4: P O Box T | Z4: DATE: | AA4: 2021-07-01
J5: Griffin, Georgia 30224
K6: (770) 229-6400 | Z6: Purchase Order No.
Z7: suffix.
Z8: Bid/Quote No. | AA8: 21-009
Z9: Vendor No.
A10: Vendor Name & Address
A11: Industrial Chemical, Inc. | M11: Per Georgia State Code 48.8, the City of Griffin is tax exempt for sale and use
A12: 2042 Montreat Drive | N12: taxes. Georgia Sales & Use Tax Exemption No. 20006246313
A13: Vestavia, AL 35216 | L13: Deliver to:
A14: orders@industrialchem.com; dianekalina@industrialchem.com | N14: City of Griffin
A15: Ph: | B15: 800-476-2042 | G15: Fax: | N15: Dept: appropriate water or wastewater plant
A16: Freight is FOB Destination Deliveries are accepted between the hours of 8:00 a.m. and 4 p.m. | F16: Mail all invoices* to: City of Griffin Attn- Accounts Payable P O Box T Griffin, GA 30224 | N16: confirm location at time of order
N17: Griffin, GA 30223
L19: ATTN: | N19: Martha Drolet / Mike Melton
A20: *Terms: Net 30 unless otherwise specified on PO | L20: Phone: | V20: Fax:
A21: - - ANY CHANGE ORDERS TO ANY PO OR WORK ORDERS MUST BE AUTHORIZED IN WRITING AND APPROVED. ALL INVOICES SUBMITTED FOR PAYMENT MUST REFERENCE A VALID PURCHASE ORDER NUMBER. - -
A22: - VENDORS MUST HAVE A CURRENT E-VERIFY AFFADAVIT ON FILE PRIOR TO PO PROCESSING - | Y22: On File? | AA22: Y/N | AB22: Y
A23: Description | K23: Account Number | T23: Quantity | V23: UOM | X23: Unit Price | Z23: Extended Totals
K24: Total quantity: | T24: 42,500 | V24: lbs | Z24: =SUM(X24*T24) -> 0.00
A25: Water Treatment Chemicals for FY 2022 | K25: 505 | L25: - | M25: 4431 | N25: - | O25: 53 | P25: - | Q25: 1120 | R25: - | S25: 0000 | T25: 20,000 | V25: lbs | X25: 0.7500 | Z25: 15,000.00 | AC25: 0.50
A26: (July 2021 - June 2022) | K26: 505 | L26: - | M26: 4432 | N26: - | O26: 53 | P26: - | Q26: 1120 | R26: - | S26: 0000 | T26: 22,500 | V26: lbs | X26: 0.7500 | Z26: 16,875.00 | AC26: 0.50
A27: CHEMICALS: BLANKET PO | L27: - | N27: - | P27: - | R27: -
L28: - | N28: - | P28: - | R28: - | Z28: =SUM(X28*T28) -> 0.00
A29: Sodium Silico Flouride | L29: - | N29: - | P29: - | R29: - | Z29: =SUM(X29*T29) -> 0.00
A30: 50-lb bags | L30: - | N30: - | P30: - | R30: - | Z30: =SUM(X30*T30) -> 0.00
L31: - | N31: - | P31: - | R31: - | Z31: =SUM(X31*T31) -> 0.00
A32: VENDORS: DUE TO MULTIPLE LOCATIONS, | L32: - | N32: - | P32: - | R32: - | Z32: 0.00
A33: PLEASE CONFIRM DELIVERY LOCATION | L33: - | N33: - | P33: - | R33: - | Z33: 0.00
A34: WITH EACH REQUEST IF NEEDED | L34: - | N34: - | P34: - | R34: - | Z34: 0.00
L35: - | N35: - | P35: - | R35: - | Z35: 0.00
A36: CAPITAL PROJECT #: | L36: - | N36: - | P36: - | R36: -
A37: DISTRIBUTION & $$ | L37: - | N37: - | P37: - | R37: -
A38: COMMENTS: | V38: Totals: $ | Y38: =SUM(Z19:AB37) -> 31,875.00
A39: Martha Drolet - 770-233-2974 x647; Mike Melton - 678-692-0407 x623
A41: COG USE ONLY | M41: COG USE ONLY
A42: Pricing method: | F42: Water/Wastewater FY22
C43: Verbal / Phone
C44: Email/Mail/Fax | G44: Dept / Requestor / Date | T44: Purchasing / Date
A45: =AA8 -> 21-009 | C45: Bid / RFP #
C46: E-Verify Affidavit
A47: Vendor emailed copy? | G47: Department Mgr / Date | T47: Finance Director / Date
C48: Vendor Notified
A49: Invoice apprvd/attchd?
C50: PMT Approval | G50: City Manager / Date | T50: BOARD / Date
C51: Inv Attached

Sheet 020-Caustic Soda 25%-Totes
J2: City of Griffin, Georgia
J3: 100 S Hill Street
J4: P O Box T | Z4: DATE: | AA4: 2021-07-01
J5: Griffin, Georgia 30224
K6: (770) 229-6400 | Z6: Purchase Order No.
Z7: suffix.
Z8: Bid/Quote No. | AA8: 21-009
Z9: Vendor No.
A10: Vendor Name & Address
A11: Brenntag Mid-South Inc. | M11: Per Georgia State Code 48.8, the City of Griffin is tax exempt for sale and use
A12: 3200 Moon Station Rd | N12: taxes. Georgia Sales & Use Tax Exemption No. 20006246313
A13: Kennesaw, GA 30144 | L13: Deliver to:
A14: baustin@brenntag.com | N14: City of Griffin
A15: Ph: | B15: 770-377-9518 | G15: Fax: | N15: Dept: Cabin Creek WPCP
A16: Freight is FOB Destination Deliveries are accepted between the hours of 8:00 a.m. and 4 p.m. | F16: Mail all invoices* to: City of Griffin Attn- Accounts Payable P O Box T Griffin, GA 30224 | N16: 1140 N Hill Street
N17: Griffin, GA 30224
L19: ATTN: | N19: Ibn Shakir
A20: *Terms: Net 30 unless otherwise specified on PO | L20: Phone: | N20: 678-692-0408 | V20: Fax:
A21: - - ANY CHANGE ORDERS TO ANY PO OR WORK ORDERS MUST BE AUTHORIZED IN WRITING AND APPROVED. ALL INVOICES SUBMITTED FOR PAYMENT MUST REFERENCE A VALID PURCHASE ORDER NUMBER. - -
A22: - VENDORS MUST HAVE A CURRENT E-VERIFY AFFADAVIT ON FILE PRIOR TO PO PROCESSING - | Y22: On File? | AA22: Y/N | AB22: Y
A23: Description | K23: Account Number | T23: Quantity | V23: UOM | X23: Unit Price | Z23: Extended Totals
L24: - | N24: - | P24: - | R24: - | Z24: =SUM(X24*T24) -> 0.00
A25: Water Treatment Chemicals for FY 2022 | K25: 505 | L25: - | M25: 4333 | N25: - | O25: 53 | P25: - | Q25: 1120 | R25: - | S25: 0000 | T25: 106,000 | V25: wet lbs | X25: 0.1200 | Z25: 12,720.00
A26: (July 2021 - June 2022) | L26: - | N26: - | P26: - | R26: - | Z26: 0.00
A27: CHEMICALS: BLANKET PO | L27: - | N27: - | P27: - | R27: - | Z27: =SUM(X27*T27) -> 0.00
L28: - | N28: - | P28: - | R28: - | Z28: =SUM(X28*T28) -> 0.00
A29: 25% Caustic Soda | L29: - | N29: - | P29: - | R29: - | Z29: =SUM(X29*T29) -> 0.00
A30: Totes | L30: - | N30: - | P30: - | R30: - | Z30: =SUM(X30*T30) -> 0.00
L31: - | N31: - | P31: - | R31: - | Z31: =SUM(X31*T31) -> 0.00
L32: - | N32: - | P32: - | R32: - | Z32: 0.00
L33: - | N33: - | P33: - | R33: - | Z33: 0.00
L34: - | N34: - | P34: - | R34: - | Z34: 0.00
L35: - | N35: - | P35: - | R35: - | Z35: 0.00
A36: CAPITAL PROJECT #: | L36: - | N36: - | P36: - | R36: -
A37: DISTRIBUTION & $$ | L37: - | N37: - | P37: - | R37: -
A38: COMMENTS: | V38: Totals: $ | Y38: =SUM(Z19:AB37) -> 12,720.00
A39: Ibn Shakir 678-692-0408
A41: COG USE ONLY | M41: COG USE ONLY
A42: Pricing method: | F42: Water/Wastewater FY22
C43: Verbal / Phone
C44: Email/Mail/Fax | G44: Dept / Requestor / Date | T44: Purchasing / Date
A45: =AA8 -> 21-009 | C45: Bid / RFP #
C46: E-Verify Affidavit
A47: Vendor emailed copy? | G47: Department Mgr / Date | T47: Finance Director / Date
C48: Vendor Notified
A49: Invoice apprvd/attchd?
C50: PMT Approval | G50: City Manager / Date | T50: BOARD / Date
C51: Inv Attached

Sheet 021-Hyper-Ion 9810-Bulk blnkt
J2: City of Griffin, Georgia
J3: 100 S Hill Street
J4: P O Box T | Z4: DATE: | AA4: 2021-07-01
J5: Griffin, Georgia 30224
K6: (770) 229-6400 | Z6: Purchase Order No.
Z7: suffix.
Z8: Bid/Quote No. | AA8: 21-009
Z9: Vendor No.
A10: Vendor Name & Address
A11: Industrial Chemical, Inc. | M11: Per Georgia State Code 48.8, the City of Griffin is tax exempt for sale and use
A12: 2042 Montreat Drive | N12: taxes. Georgia Sales & Use Tax Exemption No. 20006246313
A13: Vestavia, AL 35216 | L13: Deliver to:
A14: orders@industrialchem.com; dianekalina@industrialchem.com | N14: City of Griffin
A15: Ph: | B15: 800-476-2042 | G15: Fax: | N15: Dept: Cabin Creek WPCP
A16: Freight is FOB Destination Deliveries are accepted between the hours of 8:00 a.m. and 4 p.m. | F16: Mail all invoices* to: City of Griffin Attn- Accounts Payable P O Box T Griffin, GA 30224 | N16: 1140 N Hill Street
N17: Griffin, GA 30224
L19: ATTN: | N19: Ibn Shakir
A20: *Terms: Net 30 unless otherwise specified on PO | L20: Phone: | N20: 678-692-0408 | V20: Fax:
A21: - - ANY CHANGE ORDERS TO ANY PO OR WORK ORDERS MUST BE AUTHORIZED IN WRITING AND APPROVED. ALL INVOICES SUBMITTED FOR PAYMENT MUST REFERENCE A VALID PURCHASE ORDER NUMBER. - -
A22: - VENDORS MUST HAVE A CURRENT E-VERIFY AFFADAVIT ON FILE PRIOR TO PO PROCESSING - | Y22: On File? | AA22: Y/N | AB22: Y
A23: Description | K23: Account Number | T23: Quantity | V23: UOM | X23: Unit Price | Z23: Extended Totals
L24: - | N24: - | P24: - | R24: - | Z24: =SUM(X24*T24) -> 0.00
A25: Water Treatment Chemicals for FY 2022 | K25: 505 | L25: - | M25: 4332 | N25: - | O25: 53 | P25: - | Q25: 1120 | R25: - | S25: 0000 | T25: 130,000 | V25: lbs | X25: 0.2700 | Z25: 35,100.00
A26: (July 2021 - June 2022) | L26: - | N26: - | P26: - | R26: - | Z26: 0.00
A27: CHEMICALS: BLANKET PO | L27: - | N27: - | P27: - | R27: - | Z27: =SUM(X27*T27) -> 0.00
L28: - | N28: - | P28: - | R28: - | Z28: =SUM(X28*T28) -> 0.00
A29: Hyper-Ion 9810-Bulk | L29: - | N29: - | P29: - | R29: - | Z29: =SUM(X29*T29) -> 0.00
A30: (no substitutions) | L30: - | N30: - | P30: - | R30: - | Z30: =SUM(X30*T30) -> 0.00
L31: - | N31: - | P31: - | R31: - | Z31: =SUM(X31*T31) -> 0.00
L32: - | N32: - | P32: - | R32: - | Z32: 0.00
L33: - | N33: - | P33: - | R33: - | Z33: 0.00
L34: - | N34: - | P34: - | R34: - | Z34: 0.00
L35: - | N35: - | P35: - | R35: - | Z35: 0.00
A36: CAPITAL PROJECT #: | L36: - | N36: - | P36: - | R36: -
A37: DISTRIBUTION & $$ | L37: - | N37: - | P37: - | R37: -
A38: COMMENTS: | V38: Totals: $ | Y38: =SUM(Z19:AB37) -> 35,100.00
A39: Ibn Shakir 678-692-0408
A40: Send invoices to agolden@cityofgriffin.com
A41: COG USE ONLY | M41: COG USE ONLY
A42: Pricing method: | F42: Water/Wastewater FY22
C43: Verbal / Phone
C44: Email/Mail/Fax | G44: Dept / Requestor / Date | T44: Purchasing / Date
A45: =AA8 -> 21-009 | C45: Bid / RFP #
C46: E-Verify Affidavit
A47: Vendor emailed copy? | G47: Department Mgr / Date | T47: Finance Director / Date
C48: Vendor Notified
A49: Invoice apprvd/attchd?
C50: PMT Approval | G50: City Manager / Date | T50: BOARD / Date
C51: Inv Attached

Sheet 022-Nuchar Carbon-blnkt
J2: City of Griffin, Georgia
J3: 100 S Hill Street
J4: P O Box T | Z4: DATE: | AA4: 2021-07-01
J5: Griffin, Georgia 30224
K6: (770) 229-6400 | Z6: Purchase Order No.
Z7: suffix.
Z8: Bid/Quote No. | AA8: 21-009
Z9: Vendor No.
A10: Vendor Name & Address
A11: Chemrite | M11: Per Georgia State Code 48.8, the City of Griffin is tax exempt for sale and use
A12: 5202 Belle Wood Court, Ste 104 | N12: taxes. Georgia Sales & Use Tax Exemption No. 20006246313
A13: Buford, GA 30518 | L13: Deliver to:
A14: anne@chemrite.com / sales@chemrite.com | N14: City of Griffin
A15: Ph: | B15: 770-271-5576 | G15: Fax: | N15: Dept: appropriate water or wastewater plant
A16: Freight is FOB Destination Deliveries are accepted between the hours of 8:00 a.m. and 4 p.m. | F16: Mail all invoices* to: City of Griffin Attn- Accounts Payable P O Box T Griffin, GA 30224 | N16: confirm location at time of order
N17: Griffin, GA 30223
L19: ATTN: | N19: Martha Drolet / Mike Melton
A20: *Terms: Net 30 unless otherwise specified on PO | L20: Phone: | V20: Fax:
A21: - - ANY CHANGE ORDERS TO ANY PO OR WORK ORDERS MUST BE AUTHORIZED IN WRITING AND APPROVED. ALL INVOICES SUBMITTED FOR PAYMENT MUST REFERENCE A VALID PURCHASE ORDER NUMBER. - -
A22: - VENDORS MUST HAVE A CURRENT E-VERIFY AFFADAVIT ON FILE PRIOR TO PO PROCESSING - | Y22: On File? | AA22: Y/N | AB22: Y
A23: Description | K23: Account Number | T23: Quantity | V23: UOM | X23: Unit Price | Z23: Extended Totals
L24: - | N24: - | P24: - | R24: - | Z24: =SUM(X24*T24) -> 0.00
A25: Water Treatment Chemicals for FY 2022 | K25: 505 | L25: - | M25: 4431 | N25: - | O25: 53 | P25: - | Q25: 1120 | R25: - | S25: 0000 | T25: 3,600 | V25: lbs | X25: 0.910 | Z25: 3,276.00
A26: (July 2021 - June 2022) | K26: 505 | L26: - | M26: 4432 | N26: - | O26: 53 | P26: - | Q26: 1120 | R26: - | S26: 000 | T26: 7,500 | V26: lbs | X26: 0.910 | Z26: 6,825.00
A27: CHEMICALS: BLANKET PO | L27: - | N27: - | P27: - | R27: - | Z27: =SUM(X27*T27) -> 0.00
L28: - | N28: - | P28: - | R28: - | Z28: =SUM(X28*T28) -> 0.00
A29: Nuchar Carbon | L29: - | N29: - | P29: - | R29: - | T29: =SUM($T$24*V29) -> 0 | Z29: =SUM(X29*T29) -> 0.00
L30: - | N30: - | P30: - | R30: - | Z30: =SUM(X30*T30) -> 0.00
L31: - | N31: - | P31: - | R31: - | Z31: =SUM(X31*T31) -> 0.00
L32: - | N32: - | P32: - | R32: - | Z32: 0.00
L33: - | N33: - | P33: - | R33: - | Z33: 0.00
L34: - | N34: - | P34: - | R34: - | Z34: 0.00
L35: - | N35: - | P35: - | R35: - | Z35: 0.00
A36: CAPITAL PROJECT #: | L36: - | N36: - | P36: - | R36: -
A37: DISTRIBUTION & $$ | L37: - | N37: - | P37: - | R37: -
A38: COMMENTS: | V38: Totals: $ | Y38: =SUM(Z19:AB37) -> 10,101.00
A39: Martha Drolet - 770-233-2974 x647; Mike Melton - 678-692-0407 x623
A41: COG USE ONLY | M41: COG USE ONLY
A42: Pricing method: | F42: Water/Wastewater FY22
C43: Verbal / Phone
C44: Email/Mail/Fax | G44: Dept / Requestor / Date | T44: Purchasing / Date
A45: =AA8 -> 21-009 | C45: Bid / RFP #
C46: E-Verify Affidavit
A47: Vendor emailed copy? | G47: Department Mgr / Date | T47: Finance Director / Date
C48: Vendor Notified
A49: Invoice apprvd/attchd?
C50: PMT Approval | G50: City Manager / Date | T50: BOARD / Date
C51: Inv Attached

Sheet 023-Sodium Hypochlorite-blnkt
J2: City of Griffin, Georgia
J3: 100 S Hill Street
J4: P O Box T | Z4: DATE: | AA4: 2021-07-01
J5: Griffin, Georgia 30224
K6: (770) 229-6400 | Z6: Purchase Order No.
Z7: suffix.
Z8: Bid/Quote No. | AA8: 21-009
Z9: Vendor No.
A10: Vendor Name & Address
A11: DPC Enterprises | M11: Per Georgia State Code 48.8, the City of Griffin is tax exempt for sale and use
A12: P.O. Box 11447 | N12: taxes. Georgia Sales & Use Tax Exemption No. 20006246313
A13: Chickasaw, AL 36671 | L13: Deliver to:
A14: tmoore@dxgroup.com; jskipper@dxgroup.com | N14: City of Griffin
A15: Ph: | B15: 866-344-2781 | G15: Fax: | N15: Dept: Still Branch
A16: Freight is FOB Destination Deliveries are accepted between the hours of 8:00 a.m. and 4 p.m. | F16: Mail all invoices* to: City of Griffin Attn- Accounts Payable P O Box T Griffin, GA 30224 | N16: 2045 Flat Shoals Rd
N17: Concord, GA 30206
L19: ATTN: | N19: Mike Melton
A20: *Terms: Net 30 unless otherwise specified on PO | L20: Phone: | N20: 678-692-0407 | V20: Fax:
A21: - - ANY CHANGE ORDERS TO ANY PO OR WORK ORDERS MUST BE AUTHORIZED IN WRITING AND APPROVED. ALL INVOICES SUBMITTED FOR PAYMENT MUST REFERENCE A VALID PURCHASE ORDER NUMBER. - -
A22: - VENDORS MUST HAVE A CURRENT E-VERIFY AFFADAVIT ON FILE PRIOR TO PO PROCESSING - | Y22: On File? | AA22: Y/N | AB22: Y
A23: Description | K23: Account Number | T23: Quantity | V23: UOM | X23: Unit Price | Z23: Extended Totals
L24: - | N24: - | P24: - | R24: - | Z24: =SUM(X24*T24) -> 0.00 | AI24: =SUM(T24*X25) -> 0
A25: Water Treatment Chemicals for FY 2022 | K25: 505 | L25: - | M25: 4432 | N25: - | O25: 53 | P25: - | Q25: 1120 | R25: - | S25: 0000 | T25: 75,000 | V25: gallon | X25: 0.8080 | Z25: =SUM(T25*X25) -> 60,600.00 | AF25: =SUM(T24*0.72) -> 0.000
A26: (July 2021 - June 2022) | L26: - | N26: - | P26: - | R26: - | Z26: =SUM(T26*X26) -> 0.00 | AF26: =SUM(T24*0.26) -> 0.000
A27: CHEMICALS: BLANKET PO | L27: - | N27: - | P27: - | R27: - | Z27: 0.00 | AF27: =SUM(T26*0.02) -> 0.000
L28: - | N28: - | P28: - | R28: - | Z28: =SUM(X28*T28) -> 0.00
A29: 10-15% Sodium Hypochlorite-Bulk | L29: - | N29: - | P29: - | R29: - | Z29: 0.00
L30: - | N30: - | P30: - | R30: - | Z30: 0.00 | AF30: =SUM(T25/T24) ->  | AI30: =SUM(T24*AF30) -> 
L31: - | N31: - | P31: - | R31: - | Z31: 0.00 | AF31: =SUM(T26/T24) ->  | AI31: =SUM(T24*AF31) -> 
L32: - | N32: - | P32: - | R32: - | Z32: 0.00 | AF32: =SUM(T27/T24) ->  | AI32: =SUM(T24*AF32) -> 
L33: - | N33: - | P33: - | R33: - | Z33: 0.00
L34: - | N34: - | P34: - | R34: - | Z34: 0.00
L35: - | N35: - | P35: - | R35: - | Z35: =SUM(X35*T35) -> 0.00
A36: CAPITAL PROJECT #: | L36: - | N36: - | P36: - | R36: -
A37: DISTRIBUTION & $$ | L37: - | N37: - | P37: - | R37: -
A38: COMMENTS: | V38: Totals: $ | Y38: =SUM(Z25:AB36) -> 60,600.00
A39: Mike Melton - 678-692-0407 x623
A41: COG USE ONLY | M41: COG USE ONLY
A42: Pricing method: | F42: Water/Wastewater FY22
C43: Verbal / Phone
C44: Email/Mail/Fax | G44: Dept / Requestor / Date | T44: Purchasing / Date
A45: =AA8 -> 21-009 | C45: Bid / RFP #
C46: E-Verify Affidavit
A47: Vendor emailed copy? | G47: Department Mgr / Date | T47: Finance Director / Date
C48: Vendor Notified
A49: Invoice apprvd/attchd?
C50: PMT Approval | G50: City Manager / Date | T50: BOARD / Date
C51: Inv Attached

Sheet ACH-blnkt (hidden)
J2: City of Griffin, Georgia
J3: 100 S Hill Street
J4: P O Box T | Z4: DATE:
J5: Griffin, Georgia 30224
K6: (770) 229-6400 | Z6: Purchase Order No.
Z7: suffix. | AA7: 4432
Z8: Bid/Quote No.
Z9: Vendor No.
A10: Vendor Name & Address
A11: General Chemical | M11: Per Georgia State Code 48.8, the City of Griffin is tax exempt for sale and use
A12: 90 East Halsey Rd | N12: taxes. Georgia Sales & Use Tax Exemption No. 20006246313
A13: Parsippany, NJ 07054 | L13: Deliver to:
A14: bids@genchemcorp.com | N14: City of Griffin
A15: Ph: | B15: 800-631-8050 | G15: Fax: | N15: Dept: Still Branch
A16: Freight is FOB Destination Deliveries are accepted between the hours of 8:00 a.m. and 4 p.m. | F16: Mail all invoices* to: City of Griffin Attn- Accounts Payable P O Box T Griffin, GA 30224 | N16: 2045 Flart Shoals Rd
N17: Concord, GA 30206
L19: ATTN: | N19: Ernest Cousson / Mike Melton
A20: *Terms: Net 30 unless otherwise specified on PO | L20: Phone: | V20: Fax:
A21: - - ANY CHANGE ORDERS TO ANY PO OR WORK ORDERS MUST BE AUTHORIZED IN WRITING AND APPROVED. ALL INVOICES SUBMITTED FOR PAYMENT MUST REFERENCE A VALID PURCHASE ORDER NUMBER. - -
A22: - VENDORS MUST HAVE A CURRENT E-VERIFY AFFADAVIT ON FILE PRIOR TO PO PROCESSING - | Y22: On File? | AA22: Y/N | AB22: Y
A23: Description | K23: Account Number | T23: Quantity | V23: UOM | X23: Unit Price | Z23: Extended Totals
L24: - | N24: - | P24: - | R24: - | Z24: =SUM(X24*T24) -> 0.00
A25: Water Treatment Chemicals for FY 2015 | K25: 505 | L25: - | M25: 4432 | N25: - | O25: 20 | P25: - | Q25: 1120 | R25: - | S25: 0000 | T25: 9 | V25: loads | Z25: 0.00
A26: (July 2014 - June 2015) | L26: - | N26: - | P26: - | R26: - | V26: load= | Z26: 0.00
A27: CHEMICALS: BLANKET PO | L27: - | N27: - | P27: - | R27: - | V27: 4500 lbs | Z27: =SUM(X27*T27) -> 0.00
L28: - | N28: - | P28: - | R28: - | Z28: =SUM(X28*T28) -> 0.00
A29: Polyaluminum Hydroxychlorosulfate | L29: - | N29: - | P29: - | R29: - | Z29: =SUM(X29*T29) -> 0.00
A30: (ACH) | L30: - | N30: - | P30: - | R30: - | Z30: =SUM(X30*T30) -> 0.00
L31: - | N31: - | P31: - | R31: - | Z31: =SUM(X31*T31) -> 0.00
A32: VENDORS: DUE TO MULTIPLE LOCATIONS, | L32: - | N32: - | P32: - | R32: - | Z32: 0.00
A33: PLEASE CONFIRM DELIVERY LOCATION | L33: - | N33: - | P33: - | R33: - | Z33: 0.00
A34: WITH EACH REQUEST | L34: - | N34: - | P34: - | R34: - | Z34: 0.00
L35: - | N35: - | P35: - | R35: - | Z35: 0.00
A36: CAPITAL PROJECT #: | L36: - | N36: - | P36: - | R36: -
A37: DISTRIBUTION & $$ | L37: - | N37: - | P37: - | R37: -
A38: COMMENTS: | V38: Totals: $ | Y38: =SUM(Z19:AB37) -> 0
A39: Ernest Cousson/Mike Melton - 678-692-0407
A41: COG USE ONLY | M41: COG USE ONLY
A42: Pricing method:
C43: Verbal / Phone
C44: Email/Mail/Fax | G44: Dept / Requestor / Date | T44: Purchasing / Date
A45: =AA8 -> 0 | C45: Bid / RFP #
C46: E-Verify Affidavit
A47: Vendor emailed copy? | G47: Department Mgr / Date | T47: Finance Director / Date
C48: Vendor Notified
A49: Invoice apprvd/attchd?
C50: PMT Approval | G50: City Manager / Date | T50: BOARD / Date
C51: Inv Attached

Sheet Praestol A3040LTR-blnkt (hidden)
J2: City of Griffin, Georgia
J3: 100 S Hill Street
J4: P O Box T | Z4: DATE:
J5: Griffin, Georgia 30224
K6: (770) 229-6400 | Z6: Purchase Order No.
Z7: suffix. | AA7: 4432
Z8: Bid/Quote No.
Z9: Vendor No.
A10: Vendor Name & Address
A11: company | M11: Per Georgia State Code 48.8, the City of Griffin is tax exempt for sale and use
A12: attn / company | N12: taxes. Georgia Sales & Use Tax Exemption No. 20006246313
A13: address | L13: Deliver to:
N14: City of Griffin
A15: Ph: | G15: Fax: | N15: Dept: Still Branch
A16: Freight is FOB Destination Deliveries are accepted between the hours of 8:00 a.m. and 4 p.m. | F16: Mail all invoices* to: City of Griffin Attn- Accounts Payable P O Box T Griffin, GA 30224 | N16: 2045 Flart Shoals Rd
N17: Concord, GA 30206
L19: ATTN: | N19: Ernest Cousson / Mike Melton
A20: *Terms: Net 30 unless otherwise specified on PO | L20: Phone: | V20: Fax:
A21: - - ANY CHANGE ORDERS TO ANY PO OR WORK ORDERS MUST BE AUTHORIZED IN WRITING AND APPROVED. ALL INVOICES SUBMITTED FOR PAYMENT MUST REFERENCE A VALID PURCHASE ORDER NUMBER. - -
A22: - VENDORS MUST HAVE A CURRENT E-VERIFY AFFADAVIT ON FILE PRIOR TO PO PROCESSING - | Y22: On File? | AA22: Y/N | AB22: Y
A23: Description | K23: Account Number | T23: Quantity | V23: UOM | X23: Unit Price | Z23: Extended Totals
L24: - | N24: - | P24: - | R24: - | Z24: =SUM(X24*T24) -> 0.00
A25: Water Treatment Chemicals for FY 2015 | K25: 505 | L25: - | M25: 4432 | N25: - | O25: 20 | P25: - | Q25: 1120 | R25: - | S25: 0000 | T25: 6 | V25: drums | Z25: 0.00
A26: (July 2014 - June 2015) | L26: - | N26: - | P26: - | R26: - | V26: drum= | Z26: 0.00
A27: CHEMICALS: BLANKET PO | L27: - | N27: - | P27: - | R27: - | V27: 400lbs | Z27: =SUM(X27*T27) -> 0.00
L28: - | N28: - | P28: - | R28: - | Z28: =SUM(X28*T28) -> 0.00
A29: Praeston A3040LTR | L29: - | N29: - | P29: - | R29: - | Z29: =SUM(X29*T29) -> 0.00
A30: (no substitutions) | L30: - | N30: - | P30: - | R30: - | Z30: =SUM(X30*T30) -> 0.00
L31: - | N31: - | P31: - | R31: - | Z31: =SUM(X31*T31) -> 0.00
A32: VENDORS: DUE TO MULTIPLE LOCATIONS, | L32: - | N32: - | P32: - | R32: - | Z32: 0.00
A33: PLEASE CONFIRM DELIVERY LOCATION | L33: - | N33: - | P33: - | R33: - | Z33: 0.00
A34: WITH EACH REQUEST | L34: - | N34: - | P34: - | R34: - | Z34: 0.00
L35: - | N35: - | P35: - | R35: - | Z35: 0.00
A36: CAPITAL PROJECT #: | L36: - | N36: - | P36: - | R36: -
A37: DISTRIBUTION & $$ | L37: - | N37: - | P37: - | R37: -
A38: COMMENTS: | V38: Totals: $ | Y38: =SUM(Z19:AB37) -> 0
A39: Ernest Cousson/Mike Melton - 678-692-0407
A41: COG USE ONLY | M41: COG USE ONLY
A42: Pricing method:
C43: Verbal / Phone
C44: Email/Mail/Fax | G44: Dept / Requestor / Date | T44: Purchasing / Date
A45: =AA8 -> 0 | C45: Bid / RFP #
C46: E-Verify Affidavit
A47: Vendor emailed copy? | G47: Department Mgr / Date | T47: Finance Director / Date
C48: Vendor Notified
A49: Invoice apprvd/attchd?
C50: PMT Approval | G50: City Manager / Date | T50: BOARD / Date
C51: Inv Attached
